Workbook

Sheet Introducción
A1: CALCULADORA DC24
A3: Esta calculadora contiene dos pestañas que pueden ser utilizadas como referencia para convertir la Tasa Yield observada en el bono DC24 a Precio y viceversa.
A7: Pestaña TASA-PRECIO,
A8: Introducir los siguientes insumos:
A9: - Tasa de fondeo para el plazo del futuro buscado
A10: - Tasa Yield de mercado
A11: Resultados arrojados:
A12: - Precio futuro para el vencimiento deseado
A13: - Tasa Futura implícita
A16: Pestaña PRECIO-TASA,
A17: Introducir los siguientes insumos:
A18: - Tasa de fondeo para el plazo del futuro buscado
A19: - Precio futuro para el vencimiento buscado
A20: Resultados arrojados:
A21: - Tasa Yield de mercado para el vencimiento deseado
A22: - Tasa Futura implícita
A24: Por default en ambas pestañas aparece la fecha de consulta al SPOT, en caso de un día inhabil se tendrá que modificar para que la fecha de consulta sea la correcta.

Sheet TASA-PRECIO
A1: Fecha de Consulta | B1: =diafondeoDC24(TODAY()) -> 2014-03-03
A2: Fondeo | B2: 3.6 | H2: 3.6
A3: Tasa Yield | B3: 0.1 | D3: DC 24
D4: Precio | E4: Tasa Futura Implícita
C5: MR14 | D5: ='Datos DC24'!C26 -> 102.3 | E5: ='Datos DC24'!H12 -> 0.1007724238 | H5: 0.1
C6: JN14 | D6: ='Datos DC24'!C68 -> 98.2 | E6: ='Datos DC24'!H54 -> 0.1033062994
C7: SP14 | D7: ='Datos DC24'!C110 -> 99.1 | E7: ='Datos DC24'!H96 -> 0.1060269396
C8: DC14 | D8: ='Datos DC24'!C152 -> 94.9 | E8: ='Datos DC24'!H138 -> 0.109053044

Sheet PRECIO-TASA
A1: Fecha de Consulta | B1: =diafondeoDC24(TODAY()) -> 2014-03-03
A2: Fondeo | B2: 3.6 | H2: 3.6
C3: DC 24
B4: Precio | C4: Tasa Yield | D4: Tasa Futura Implícita
A5: MR14 | B5: 100 | C5: ='Datos DC24 (2)'!C12 -> 0.1035728892 | D5: ='Datos DC24 (2)'!H12 -> 0.1043773649 | H5: 100
A6: JN14 | B6: 100 | C6: ='Datos DC24 (2)'!C54 -> 0.0972879878 | D6: ='Datos DC24 (2)'!H54 -> 0.1004631663 | H6: 100
A7: SP14 | B7: 100 | C7: ='Datos DC24 (2)'!C96 -> 0.09862132435 | D7: ='Datos DC24 (2)'!H96 -> 0.1045438663 | H7: 100
A8: DC14 | B8: 100 | C8: ='Datos DC24 (2)'!C138 -> 0.09269984905 | D8: ='Datos DC24 (2)'!H138 -> 0.1005646691 | H8: 100

Sheet Datos DC24
B1: FUTURO M10 | G1: FUTURO M10
A2: MARZO | B2: 1 | G2: 1
B3: 2024-12-05 | G3: 2024-12-05
B4: Tasa Fondeo | C4: ='TASA-PRECIO'!B2 -> 3.6 | G4: Tasa Fondeo | H4: =C4 -> 3.6
B6: Fecha Consulta | C6: ='TASA-PRECIO'!B1 -> 2014-03-03 | G6: Fecha Consulta | H6: =H7 -> 2014-03-31
B7: Futuro Analizado | C7: 2014-03-31 | G7: Futuro Analizado | H7: =C7 -> 2014-03-31
B8: Dias al Vencimiento del Fut. | C8: =C7-C6 -> 28 | G8: Dias al Vencimiento del Fut. | H8: =H7-H6 -> 0
B9: Fecha Vencimiento Bono | C9: =+B3 -> 2024-12-05 | G9: Fecha Vencimiento Bono | H9: =+G3 -> 2024-12-05
B10: Dias por Vencer | C10: =C9-C6 -> 3930 | G10: Dias por Vencer | H10: =H9-H6 -> 3902
B11: Tasa de Cupón | C11: 0.1 | G11: Tasa de Cupón | H11: =C11 -> 0.1
B12: Rendimiento a Vencimiento | C12: ='TASA-PRECIO'!B3 -> 0.1 | G12: Rendimiento a Vencimiento | H12: 0.1007724238
B13: Dias Trans. Cupón Vigente | C13: =C6-C17 -> 74 | G13: Dias Trans. Cupón Vigente | H13: =H6-H17 -> 102
B14: Precio Limpio | C14: =100*((((C11*182/360*(1+(1/(C12*182/360))))+(((1+(C12*182/360))^(1-(INT(C10/182)+1)))*(1-((C11*182/360)/(C12*182/360)))))/((1+(C12*182/360))^((((C10/182)-INT(C10/182))*182)/182)))-((C11*182/360)*(182-((((C10/182)-INT(C10/182))*182)))/182)) -> 99.96996841 | G14: Precio Limpio | H14: =100*((((H11*182/360*(1+(1/(H12*182/360))))+(((1+(H12*182/360))^(1-(INT(H10/182)+1)))*(1-((H11*182/360)/(H12*182/360)))))/((1+(H12*182/360))^((((H10/182)-INT(H10/182))*182)/182)))-((H11*182/360)*(182-((((H10/182)-INT(H10/182))*182)))/182)) -> 99.4666675
B15: Intereses Corridos | C15: =100*((C11)*(C13/360)) -> 2.055555556 | G15: Intereses Corridos | H15: =100*((H11)*(H13/360)) -> 2.833333333
B16: Precio Sucio | C16: =C14+C15 -> 102.025524 | G16: Precio Sucio | H16: =H14+H15 -> 102.3000008
B17: Ultimo Cupón del bono | C17: 2013-12-19 | G17: Ultimo Cupón del bono | H17: =C17 -> 2013-12-19
B18: Ultimo Cupón que paga AL VENCIMIENTO DEL FUTURO | C18: 2013-12-19 | G18: Ultimo Cupón que paga AL VENCIMIENTO DEL FUTURO | H18: =C18 -> 2013-12-19
B19: Siguiente Cupón del bono | C19: 2011-06-23 | G19: Siguiente Cupón del bono | H19: 2011-06-23
B20: ¿Paga Cupon(es)? | C20: =INT((C18-C17)/182) -> 0 | G20: ¿Paga Cupon(es)? | H20: =INT((H18-H17)/182) -> 0
B21: Valor Presente Cupones | C21: =IF(C20>0,IF(C20>1,IF(C20>2,IF(C20>3,IF(C20>4,IF(C20>5,IF(C20>6,IF(C20>7,C39,C38),C37),C36),C35),C34),C33),C32),0) -> 0 | G21: Valor Presente Cupones | H21: =IF(H20>0,IF(H20>1,IF(H20>2,IF(H20>3,IF(H20>4,IF(H20>5,IF(H20>6,IF(H20>7,H39,H38),H37),H36),H35),H34),H33),H32),0) -> 0
B22: Precio Bruto Con Acarreo | C22: =(C16-C21)*(1+(C4/100*C8/360)) -> 102.3111954 | G22: Precio Bruto Con Acarreo | H22: =(H16-H21)*(1+(H4/100*H8/360)) -> 102.3000008
B26: Valor Teórico del Futuro | C26: =MROUND(C22,0.1) -> 102.3 | F26: ='TASA-PRECIO'!D5 -> 102.3 | G26: Valor Teórico del Futuro | H26: =H22 -> 102.3000008
B31: Cupones | G31: Cupones
B32: 1 | C32: =(100*C11*(182)/360)/(1+(C4*(C17+182-C6)/36000)) -> 5.001538935 | G32: 1 | H32: =(100*H11*(182)/360)/(1+(H4*(H17+182-H6)/36000)) -> 5.015432099
B33: 2 | C33: =(100*C11*(182)/360)/(1+(C4*(C17+182-C6)/36000))+(100*C11*(182)/360)/(1+(C4*(C17+364-C6)/36000)) -> 9.914615277 | G33: 2 | H33: =(100*H11*(182)/360)/(1+(H4*(H17+182-H6)/36000))+(100*H11*(182)/360)/(1+(H4*(H17+364-H6)/36000)) -> 9.941913833
B34: 3 | C34: =(100*C11*(182)/360)/(1+(C4*(C17+182-C6)/36000))+(100*C11*(182)/360)/(1+(C4*(C17+364-C6)/36000))+(100*C11*(182)/360)/(1+(C4*(C17+546-C6)/36000)) -> 14.74230393 | G34: 3 | H34: =(100*H11*(182)/360)/(1+(H4*(H17+182-H6)/36000))+(100*H11*(182)/360)/(1+(H4*(H17+364-H6)/36000))+(100*H11*(182)/360)/(1+(H4*(H17+546-H6)/36000)) -> 14.78254535
B35: 4 | C35: =(100*C11*(182)/360)/(1+(C4*(C17+182-C6)/36000))+(100*C11*(182)/360)/(1+(C4*(C17+364-C6)/36000))+(100*C11*(182)/360)/(1+(C4*(C17+546-C6)/36000))+(100*C11*(182)/360)/(1+(C4*(C17+728-C6)/36000)) -> 19.48752221 | G35: 4 | H35: =(100*H11*(182)/360)/(1+(H4*(H17+182-H6)/36000))+(100*H11*(182)/360)/(1+(H4*(H17+364-H6)/36000))+(100*H11*(182)/360)/(1+(H4*(H17+546-H6)/36000))+(100*H11*(182)/360)/(1+(H4*(H17+728-H6)/36000)) -> 19.5402675
B36: 5 | C36: =(100*C11*(182)/360)/(1+(C4*(C17+182-C6)/36000))+(100*C11*(182)/360)/(1+(C4*(C17+364-C6)/36000))+(100*C11*(182)/360)/(1+(C4*(C17+546-C6)/36000))+(100*C11*(182)/360)/(1+(C4*(C17+728-C6)/36000))+(100*C11*(182)/360)/(1+(C4*(C17+910-C6)/36000)) -> 24.15304044 | G36: 5 | H36: =(100*H11*(182)/360)/(1+(H4*(H17+182-H6)/36000))+(100*H11*(182)/360)/(1+(H4*(H17+364-H6)/36000))+(100*H11*(182)/360)/(1+(H4*(H17+546-H6)/36000))+(100*H11*(182)/360)/(1+(H4*(H17+728-H6)/36000))+(100*H11*(182)/360)/(1+(H4*(H17+910-H6)/36000)) -> 24.21787256
B37: 6 | C37: =(100*C11*(182)/360)/(1+(C4*(C17+182-C6)/36000))+(100*C11*(182)/360)/(1+(C4*(C17+364-C6)/36000))+(100*C11*(182)/360)/(1+(C4*(C17+546-C6)/36000))+(100*C11*(182)/360)/(1+(C4*(C17+728-C6)/36000))+(100*C11*(182)/360)/(1+(C4*(C17+910-C6)/36000))+(100*C11*(182)/360)/(1+(C4*(C17+1092-C6)/36000)) -> 28.74149166 | G37: 6 | H37: =(100*H11*(182)/360)/(1+(H4*(H17+182-H6)/36000))+(100*H11*(182)/360)/(1+(H4*(H17+364-H6)/36000))+(100*H11*(182)/360)/(1+(H4*(H17+546-H6)/36000))+(100*H11*(182)/360)/(1+(H4*(H17+728-H6)/36000))+(100*H11*(182)/360)/(1+(H4*(H17+910-H6)/36000))+(100*H11*(182)/360)/(1+(H4*(H17+1092-H6)/36000)) -> 28.81801411
B38: 7 | C38: =(100*C11*(182)/360)/(1+(C4*(C17+182-C6)/36000))+(100*C11*(182)/360)/(1+(C4*(C17+364-C6)/36000))+(100*C11*(182)/360)/(1+(C4*(C17+546-C6)/36000))+(100*C11*(182)/360)/(1+(C4*(C17+728-C6)/36000))+(100*C11*(182)/360)/(1+(C4*(C17+910-C6)/36000))+(100*C11*(182)/360)/(1+(C4*(C17+1092-C6)/36000))+(100*C11*(182)/360)/(1+(C4*(C17+1274-C6)/36000)) -> 33.25538055 | G38: 7 | H38: =(100*H11*(182)/360)/(1+(H4*(H17+182-H6)/36000))+(100*H11*(182)/360)/(1+(H4*(H17+364-H6)/36000))+(100*H11*(182)/360)/(1+(H4*(H17+546-H6)/36000))+(100*H11*(182)/360)/(1+(H4*(H17+728-H6)/36000))+(100*H11*(182)/360)/(1+(H4*(H17+910-H6)/36000))+(100*H11*(182)/360)/(1+(H4*(H17+1092-H6)/36000))+(100*H11*(182)/360)/(1+(H4*(H17+1274-H6)/36000)) -> 33.343216
B39: 8 | C39: =(100*C11*(182)/360)/(1+(C4*(C17+182-C6)/36000))+(100*C11*(182)/360)/(1+(C4*(C17+364-C6)/36000))+(100*C11*(182)/360)/(1+(C4*(C17+546-C6)/36000))+(100*C11*(182)/360)/(1+(C4*(C17+728-C6)/36000))+(100*C11*(182)/360)/(1+(C4*(C17+910-C6)/36000))+(100*C11*(182)/360)/(1+(C4*(C17+1092-C6)/36000))+(100*C11*(182)/360)/(1+(C4*(C17+1274-C6)/36000))+(100*C11*(182)/360)/(1+(C4*(C17+1456-C6)/36000)) -> 37.69709163 | G39: 8 | H39: =(100*H11*(182)/360)/(1+(H4*(H17+182-H6)/36000))+(100*H11*(182)/360)/(1+(H4*(H17+364-H6)/36000))+(100*H11*(182)/360)/(1+(H4*(H17+546-H6)/36000))+(100*H11*(182)/360)/(1+(H4*(H17+728-H6)/36000))+(100*H11*(182)/360)/(1+(H4*(H17+910-H6)/36000))+(100*H11*(182)/360)/(1+(H4*(H17+1092-H6)/36000))+(100*H11*(182)/360)/(1+(H4*(H17+1274-H6)/36000))+(100*H11*(182)/360)/(1+(H4*(H17+1456-H6)/36000)) -> 37.79588075
B40: 9 | C40: =(100*C11*(182)/360)/(1+(C4*(C17+182-C6)/36000))+(100*C11*(182)/360)/(1+(C4*(C17+364-C6)/36000))+(100*C11*(182)/360)/(1+(C4*(C17+546-C6)/36000))+(100*C11*(182)/360)/(1+(C4*(C17+728-C6)/36000))+(100*C11*(182)/360)/(1+(C4*(C17+910-C6)/36000))+(100*C11*(182)/360)/(1+(C4*(C17+1092-C6)/36000))+(100*C11*(182)/360)/(1+(C4*(C17+1274-C6)/36000))+(100*C11*(182)/360)/(1+(C4*(C17+1456-C6)/36000))+(100*C11*(182)/360)/(1+(C4*(C17+1638-C6)/36000)) -> 42.06889685 | G40: 9 | H40: =(100*H11*(182)/360)/(1+(H4*(H17+182-H6)/36000))+(100*H11*(182)/360)/(1+(H4*(H17+364-H6)/36000))+(100*H11*(182)/360)/(1+(H4*(H17+546-H6)/36000))+(100*H11*(182)/360)/(1+(H4*(H17+728-H6)/36000))+(100*H11*(182)/360)/(1+(H4*(H17+910-H6)/36000))+(100*H11*(182)/360)/(1+(H4*(H17+1092-H6)/36000))+(100*H11*(182)/360)/(1+(H4*(H17+1274-H6)/36000))+(100*H11*(182)/360)/(1+(H4*(H17+1456-H6)/36000))+(100*H11*(182)/360)/(1+(H4*(H17+1638-H6)/36000)) -> 42.17829715
B41: 10 | C41: =(100*C11*(182)/360)/(1+(C4*(C17+182-C6)/36000))+(100*C11*(182)/360)/(1+(C4*(C17+364-C6)/36000))+(100*C11*(182)/360)/(1+(C4*(C17+546-C6)/36000))+(100*C11*(182)/360)/(1+(C4*(C17+728-C6)/36000))+(100*C11*(182)/360)/(1+(C4*(C17+910-C6)/36000))+(100*C11*(182)/360)/(1+(C4*(C17+1092-C6)/36000))+(100*C11*(182)/360)/(1+(C4*(C17+1274-C6)/36000))+(100*C11*(182)/360)/(1+(C4*(C17+1456-C6)/36000))+(100*C11*(182)/360)/(1+(C4*(C17+1638-C6)/36000))+(100*C11*(182)/360)/(1+(C4*(C17+1820-C6)/36000)) -> 46.37296254 | G41: 10 | H41: =(100*H11*(182)/360)/(1+(H4*(H17+182-H6)/36000))+(100*H11*(182)/360)/(1+(H4*(H17+364-H6)/36000))+(100*H11*(182)/360)/(1+(H4*(H17+546-H6)/36000))+(100*H11*(182)/360)/(1+(H4*(H17+728-H6)/36000))+(100*H11*(182)/360)/(1+(H4*(H17+910-H6)/36000))+(100*H11*(182)/360)/(1+(H4*(H17+1092-H6)/36000))+(100*H11*(182)/360)/(1+(H4*(H17+1274-H6)/36000))+(100*H11*(182)/360)/(1+(H4*(H17+1456-H6)/36000))+(100*H11*(182)/360)/(1+(H4*(H17+1638-H6)/36000))+(100*H11*(182)/360)/(1+(H4*(H17+1820-H6)/36000)) -> 46.49264734
A44: JUNIO | B44: 1 | G44: 1
B45: 2024-12-05 | G45: 2024-12-05
B46: Tasa Fondeo | C46: =C4 -> 3.6 | G46: Tasa Fondeo | H46: =H4 -> 3.6
B48: Fecha Consulta | C48: =C6 -> 2014-03-03 | G48: Fecha Consulta | H48: =H49 -> 2014-06-30
B49: Futuro Analizado | C49: 2014-06-30 | G49: Futuro Analizado | H49: =C49 -> 2014-06-30
B50: Dias al Vencimiento del Fut. | C50: =C49-C48 -> 119 | G50: Dias al Vencimiento del Fut. | H50: =H49-H48 -> 0
B51: Fecha Vencimiento Bono | C51: =+B45 -> 2024-12-05 | G51: Fecha Vencimiento Bono | H51: =+G45 -> 2024-12-05
B52: Dias por Vencer | C52: =C51-C48 -> 3930 | G52: Dias por Vencer | H52: =H51-H48 -> 3811
B53: Tasa de Cupón | C53: 0.1 | G53: Tasa de Cupón | H53: =C53 -> 0.1
B54: Rendimiento a Vencimiento | C54: =C12 -> 0.1 | G54: Rendimiento a Vencimiento | H54: 0.1033062994
B55: Dias Trans. Cupón Vigente | C55: =C48-C59 -> 74 | G55: Dias Trans. Cupón Vigente | H55: =H48-H59 -> 11
B56: Precio Limpio | C56: =100*((((C53*182/360*(1+(1/(C54*182/360))))+(((1+(C54*182/360))^(1-(INT(C52/182)+1)))*(1-((C53*182/360)/(C54*182/360)))))/((1+(C54*182/360))^((((C52/182)-INT(C52/182))*182)/182)))-((C53*182/360)*(182-((((C52/182)-INT(C52/182))*182)))/182)) -> 99.96996841 | G56: Precio Limpio | H56: =100*((((H53*182/360*(1+(1/(H54*182/360))))+(((1+(H54*182/360))^(1-(INT(H52/182)+1)))*(1-((H53*182/360)/(H54*182/360)))))/((1+(H54*182/360))^((((H52/182)-INT(H52/182))*182)/182)))-((H53*182/360)*(182-((((H52/182)-INT(H52/182))*182)))/182)) -> 97.8944456
B57: Intereses Corridos | C57: =100*((C53)*(C55/360)) -> 2.055555556 | G57: Intereses Corridos | H57: =100*((H53)*(H55/360)) -> 0.3055555556
B58: Precio Sucio | C58: =C56+C57 -> 102.025524 | G58: Precio Sucio | H58: =H56+H57 -> 98.20000116
B59: Ultimo Cupón del bono | C59: 2013-12-19 | G59: Ultimo Cupón del bono | H59: 2014-06-19
B60: Ultimo Cupón que paga AL VENCIMIENTO DEL FUTURO | C60: 2014-06-19 | G60: Ultimo Cupón que paga AL VENCIMIENTO DEL FUTURO | H60: =C60 -> 2014-06-19
B61: Siguiente Cupón del bono | C61: 2010-12-23 | G61: Siguiente Cupón del bono | H61: 2010-12-23
B62: ¿Paga Cupon(es)? | C62: =INT((C60-C59)/182) -> 1 | G62: ¿Paga Cupon(es)? | H62: =INT((H60-H59)/182) -> 0
B63: Valor Presente Cupones | C63: =IF(C62>0,IF(C62>1,IF(C62>2,IF(C62>3,IF(C62>4,IF(C62>5,IF(C62>6,IF(C62>7,C81,C80),C79),C78),C77),C76),C75),C74),0) -> 5.001538935 | G63: Valor Presente Cupones | H63: =IF(H62>0,IF(H62>1,IF(H62>2,IF(H62>3,IF(H62>4,IF(H62>5,IF(H62>6,IF(H62>7,H81,H80),H79),H78),H77),H76),H75),H74),0) -> 0
B64: Precio Bruto Con Acarreo | C64: =(C58-C63)*(1+(C46/100*C50/360)) -> 98.17857045 | G64: Precio Bruto Con Acarreo | H64: =(H58-H63)*(1+(H46/100*H50/360)) -> 98.20000116
B68: Valor Teórico del Futuro | C68: =MROUND(C64,0.1) -> 98.2 | F68: ='TASA-PRECIO'!D6 -> 98.2 | G68: Valor Teórico del Futuro | H68: =H64 -> 98.20000116
B73: Cupones | G73: Cupones
B74: 1 | C74: =(100*C53*(182)/360)/(1+(C46*(C59+182-C48)/36000)) -> 5.001538935 | G74: 1 | H74: =(100*H53*(182)/360)/(1+(H46*(H59+182-H48)/36000)) -> 4.970558997
B75: 2 | C75: =(100*C53*(182)/360)/(1+(C46*(C59+182-C48)/36000))+(100*C53*(182)/360)/(1+(C46*(C59+364-C48)/36000)) -> 9.914615277 | G75: 2 | H75: =(100*H53*(182)/360)/(1+(H46*(H59+182-H48)/36000))+(100*H53*(182)/360)/(1+(H46*(H59+364-H48)/36000)) -> 9.853738322
B76: 3 | C76: =(100*C53*(182)/360)/(1+(C46*(C59+182-C48)/36000))+(100*C53*(182)/360)/(1+(C46*(C59+364-C48)/36000))+(100*C53*(182)/360)/(1+(C46*(C59+546-C48)/36000)) -> 14.74230393 | G76: 3 | H76: =(100*H53*(182)/360)/(1+(H46*(H59+182-H48)/36000))+(100*H53*(182)/360)/(1+(H46*(H59+364-H48)/36000))+(100*H53*(182)/360)/(1+(H46*(H59+546-H48)/36000)) -> 14.65255707
B77: 4 | C77: =(100*C53*(182)/360)/(1+(C46*(C59+182-C48)/36000))+(100*C53*(182)/360)/(1+(C46*(C59+364-C48)/36000))+(100*C53*(182)/360)/(1+(C46*(C59+546-C48)/36000))+(100*C53*(182)/360)/(1+(C46*(C59+728-C48)/36000)) -> 19.48752221 | G77: 4 | H77: =(100*H53*(182)/360)/(1+(H46*(H59+182-H48)/36000))+(100*H53*(182)/360)/(1+(H46*(H59+364-H48)/36000))+(100*H53*(182)/360)/(1+(H46*(H59+546-H48)/36000))+(100*H53*(182)/360)/(1+(H46*(H59+728-H48)/36000)) -> 19.36988054
B78: 5 | C78: =(100*C53*(182)/360)/(1+(C46*(C59+182-C48)/36000))+(100*C53*(182)/360)/(1+(C46*(C59+364-C48)/36000))+(100*C53*(182)/360)/(1+(C46*(C59+546-C48)/36000))+(100*C53*(182)/360)/(1+(C46*(C59+728-C48)/36000))+(100*C53*(182)/360)/(1+(C46*(C59+910-C48)/36000)) -> 24.15304044 | G78: 5 | H78: =(100*H53*(182)/360)/(1+(H46*(H59+182-H48)/36000))+(100*H53*(182)/360)/(1+(H46*(H59+364-H48)/36000))+(100*H53*(182)/360)/(1+(H46*(H59+546-H48)/36000))+(100*H53*(182)/360)/(1+(H46*(H59+728-H48)/36000))+(100*H53*(182)/360)/(1+(H46*(H59+910-H48)/36000)) -> 24.00843046
B79: 6 | C79: =(100*C53*(182)/360)/(1+(C46*(C59+182-C48)/36000))+(100*C53*(182)/360)/(1+(C46*(C59+364-C48)/36000))+(100*C53*(182)/360)/(1+(C46*(C59+546-C48)/36000))+(100*C53*(182)/360)/(1+(C46*(C59+728-C48)/36000))+(100*C53*(182)/360)/(1+(C46*(C59+910-C48)/36000))+(100*C53*(182)/360)/(1+(C46*(C59+1092-C48)/36000)) -> 28.74149166 | G79: 6 | H79: =(100*H53*(182)/360)/(1+(H46*(H59+182-H48)/36000))+(100*H53*(182)/360)/(1+(H46*(H59+364-H48)/36000))+(100*H53*(182)/360)/(1+(H46*(H59+546-H48)/36000))+(100*H53*(182)/360)/(1+(H46*(H59+728-H48)/36000))+(100*H53*(182)/360)/(1+(H46*(H59+910-H48)/36000))+(100*H53*(182)/360)/(1+(H46*(H59+1092-H48)/36000)) -> 28.57079446
B80: 7 | C80: =(100*C53*(182)/360)/(1+(C46*(C59+182-C48)/36000))+(100*C53*(182)/360)/(1+(C46*(C59+364-C48)/36000))+(100*C53*(182)/360)/(1+(C46*(C59+546-C48)/36000))+(100*C53*(182)/360)/(1+(C46*(C59+728-C48)/36000))+(100*C53*(182)/360)/(1+(C46*(C59+910-C48)/36000))+(100*C53*(182)/360)/(1+(C46*(C59+1092-C48)/36000))+(100*C53*(182)/360)/(1+(C46*(C59+1274-C48)/36000)) -> 33.25538055 | G80: 7 | H80: =(100*H53*(182)/360)/(1+(H46*(H59+182-H48)/36000))+(100*H53*(182)/360)/(1+(H46*(H59+364-H48)/36000))+(100*H53*(182)/360)/(1+(H46*(H59+546-H48)/36000))+(100*H53*(182)/360)/(1+(H46*(H59+728-H48)/36000))+(100*H53*(182)/360)/(1+(H46*(H59+910-H48)/36000))+(100*H53*(182)/360)/(1+(H46*(H59+1092-H48)/36000))+(100*H53*(182)/360)/(1+(H46*(H59+1274-H48)/36000)) -> 33.05943475
B81: 8 | C81: =(100*C53*(182)/360)/(1+(C46*(C59+182-C48)/36000))+(100*C53*(182)/360)/(1+(C46*(C59+364-C48)/36000))+(100*C53*(182)/360)/(1+(C46*(C59+546-C48)/36000))+(100*C53*(182)/360)/(1+(C46*(C59+728-C48)/36000))+(100*C53*(182)/360)/(1+(C46*(C59+910-C48)/36000))+(100*C53*(182)/360)/(1+(C46*(C59+1092-C48)/36000))+(100*C53*(182)/360)/(1+(C46*(C59+1274-C48)/36000))+(100*C53*(182)/360)/(1+(C46*(C59+1456-C48)/36000)) -> 37.69709163 | G81: 8 | H81: =(100*H53*(182)/360)/(1+(H46*(H59+182-H48)/36000))+(100*H53*(182)/360)/(1+(H46*(H59+364-H48)/36000))+(100*H53*(182)/360)/(1+(H46*(H59+546-H48)/36000))+(100*H53*(182)/360)/(1+(H46*(H59+728-H48)/36000))+(100*H53*(182)/360)/(1+(H46*(H59+910-H48)/36000))+(100*H53*(182)/360)/(1+(H46*(H59+1092-H48)/36000))+(100*H53*(182)/360)/(1+(H46*(H59+1274-H48)/36000))+(100*H53*(182)/360)/(1+(H46*(H59+1456-H48)/36000)) -> 37.47669605
B82: 9 | C82: =(100*C53*(182)/360)/(1+(C46*(C59+182-C48)/36000))+(100*C53*(182)/360)/(1+(C46*(C59+364-C48)/36000))+(100*C53*(182)/360)/(1+(C46*(C59+546-C48)/36000))+(100*C53*(182)/360)/(1+(C46*(C59+728-C48)/36000))+(100*C53*(182)/360)/(1+(C46*(C59+910-C48)/36000))+(100*C53*(182)/360)/(1+(C46*(C59+1092-C48)/36000))+(100*C53*(182)/360)/(1+(C46*(C59+1274-C48)/36000))+(100*C53*(182)/360)/(1+(C46*(C59+1456-C48)/36000))+(100*C53*(182)/360)/(1+(C46*(C59+1638-C48)/36000)) -> 42.06889685 | G82: 9 | H82: =(100*H53*(182)/360)/(1+(H46*(H59+182-H48)/36000))+(100*H53*(182)/360)/(1+(H46*(H59+364-H48)/36000))+(100*H53*(182)/360)/(1+(H46*(H59+546-H48)/36000))+(100*H53*(182)/360)/(1+(H46*(H59+728-H48)/36000))+(100*H53*(182)/360)/(1+(H46*(H59+910-H48)/36000))+(100*H53*(182)/360)/(1+(H46*(H59+1092-H48)/36000))+(100*H53*(182)/360)/(1+(H46*(H59+1274-H48)/36000))+(100*H53*(182)/360)/(1+(H46*(H59+1456-H48)/36000))+(100*H53*(182)/360)/(1+(H46*(H59+1638-H48)/36000)) -> 41.82481298
B83: 10 | C83: =(100*C53*(182)/360)/(1+(C46*(C59+182-C48)/36000))+(100*C53*(182)/360)/(1+(C46*(C59+364-C48)/36000))+(100*C53*(182)/360)/(1+(C46*(C59+546-C48)/36000))+(100*C53*(182)/360)/(1+(C46*(C59+728-C48)/36000))+(100*C53*(182)/360)/(1+(C46*(C59+910-C48)/36000))+(100*C53*(182)/360)/(1+(C46*(C59+1092-C48)/36000))+(100*C53*(182)/360)/(1+(C46*(C59+1274-C48)/36000))+(100*C53*(182)/360)/(1+(C46*(C59+1456-C48)/36000))+(100*C53*(182)/360)/(1+(C46*(C59+1638-C48)/36000))+(100*C53*(182)/360)/(1+(C46*(C59+1820-C48)/36000)) -> 46.37296254 | G83: 10 | H83: =(100*H53*(182)/360)/(1+(H46*(H59+182-H48)/36000))+(100*H53*(182)/360)/(1+(H46*(H59+364-H48)/36000))+(100*H53*(182)/360)/(1+(H46*(H59+546-H48)/36000))+(100*H53*(182)/360)/(1+(H46*(H59+728-H48)/36000))+(100*H53*(182)/360)/(1+(H46*(H59+910-H48)/36000))+(100*H53*(182)/360)/(1+(H46*(H59+1092-H48)/36000))+(100*H53*(182)/360)/(1+(H46*(H59+1274-H48)/36000))+(100*H53*(182)/360)/(1+(H46*(H59+1456-H48)/36000))+(100*H53*(182)/360)/(1+(H46*(H59+1638-H48)/36000))+(100*H53*(182)/360)/(1+(H46*(H59+1820-H48)/36000)) -> 46.10591684
A86: SEPTIEMBRE | B86: 1 | G86: 1
B87: 2024-12-05 | G87: 2024-12-05
B88: Tasa Fondeo | C88: =C4 -> 3.6 | G88: Tasa Fondeo | H88: =H4 -> 3.6
B90: Fecha Consulta | C90: =C48 -> 2014-03-03 | G90: Fecha Consulta | H90: =H91 -> 2014-09-30
B91: Futuro Analizado | C91: 2014-09-30 | G91: Futuro Analizado | H91: =C91 -> 2014-09-30
B92: Dias al Vencimiento del Fut. | C92: =C91-C90 -> 211 | G92: Dias al Vencimiento del Fut. | H92: =H91-H90 -> 0
B93: Fecha Vencimiento Bono | C93: =+B87 -> 2024-12-05 | G93: Fecha Vencimiento Bono | H93: =+G87 -> 2024-12-05
B94: Dias por Vencer | C94: =C93-C90 -> 3930 | G94: Dias por Vencer | H94: =H93-H90 -> 3719
B95: Tasa de Cupón | C95: 0.1 | G95: Tasa de Cupón | H95: =C95 -> 0.1
B96: Rendimiento a Vencimiento | C96: =C12 -> 0.1 | G96: Rendimiento a Vencimiento | H96: 0.1060269396
B97: Dias Trans. Cupón Vigente | C97: =C90-C101 -> 74 | G97: Dias Trans. Cupón Vigente | H97: =H90-H101 -> 103
B98: Precio Limpio | C98: =100*((((C95*182/360*(1+(1/(C96*182/360))))+(((1+(C96*182/360))^(1-(INT(C94/182)+1)))*(1-((C95*182/360)/(C96*182/360)))))/((1+(C96*182/360))^((((C94/182)-INT(C94/182))*182)/182)))-((C95*182/360)*(182-((((C94/182)-INT(C94/182))*182)))/182)) -> 99.96996841 | G98: Precio Limpio | H98: =100*((((H95*182/360*(1+(1/(H96*182/360))))+(((1+(H96*182/360))^(1-(INT(H94/182)+1)))*(1-((H95*182/360)/(H96*182/360)))))/((1+(H96*182/360))^((((H94/182)-INT(H94/182))*182)/182)))-((H95*182/360)*(182-((((H94/182)-INT(H94/182))*182)))/182)) -> 96.23889039
B99: Intereses Corridos | C99: =100*((C95)*(C97/360)) -> 2.055555556 | G99: Intereses Corridos | H99: =100*((H95)*(H97/360)) -> 2.861111111
B100: Precio Sucio | C100: =C98+C99 -> 102.025524 | G100: Precio Sucio | H100: =H98+H99 -> 99.1000015
B101: Ultimo Cupón del bono | C101: 2013-12-19 | G101: Ultimo Cupón del bono | H101: 2014-06-19
B102: Ultimo Cupón que paga AL VENCIMIENTO DEL FUTURO | C102: 2014-06-19 | G102: Ultimo Cupón que paga AL VENCIMIENTO DEL FUTURO | H102: =C102 -> 2014-06-19
B103: Siguiente Cupón del bono | C103: 2010-12-23 | G103: Siguiente Cupón del bono | H103: 2010-12-23
B104: ¿Paga Cupon(es)? | C104: =INT((C102-C101)/182) -> 1 | G104: ¿Paga Cupon(es)? | H104: =INT((H102-H101)/182) -> 0
B105: Valor Presente Cupones | C105: =IF(C104>0,IF(C104>1,IF(C104>2,IF(C104>3,IF(C104>4,IF(C104>5,IF(C104>6,IF(C104>7,C123,C122),C121),C120),C119),C118),C117),C116),0) -> 5.001538935 | G105: Valor Presente Cupones | H105: =IF(H104>0,IF(H104>1,IF(H104>2,IF(H104>3,IF(H104>4,IF(H104>5,IF(H104>6,IF(H104>7,H123,H122),H121),H120),H119),H118),H117),H116),0) -> 0
B106: Precio Bruto Con Acarreo | C106: =(C100-C105)*(1+(C88/100*C92/360)) -> 99.07119111 | G106: Precio Bruto Con Acarreo | H106: =(H100-H105)*(1+(H88/100*H92/360)) -> 99.1000015
B110: Valor Teórico del Futuro | C110: =MROUND(C106,0.1) -> 99.1 | F110: ='TASA-PRECIO'!D7 -> 99.1 | G110: Valor Teórico del Futuro | H110: =H106 -> 99.1000015
B115: Cupones | G115: Cupones
B116: 1 | C116: =(100*C95*(182)/360)/(1+(C88*(C101+182-C90)/36000)) -> 5.001538935 | G116: 1 | H116: =(100*H95*(182)/360)/(1+(H88*(H101+182-H90)/36000)) -> 5.015929711
B117: 2 | C117: =(100*C95*(182)/360)/(1+(C88*(C101+182-C90)/36000))+(100*C95*(182)/360)/(1+(C88*(C101+364-C90)/36000)) -> 9.914615277 | G117: 2 | H117: =(100*H95*(182)/360)/(1+(H88*(H101+182-H90)/36000))+(100*H95*(182)/360)/(1+(H88*(H101+364-H90)/36000)) -> 9.942891562
B118: 3 | C118: =(100*C95*(182)/360)/(1+(C88*(C101+182-C90)/36000))+(100*C95*(182)/360)/(1+(C88*(C101+364-C90)/36000))+(100*C95*(182)/360)/(1+(C88*(C101+546-C90)/36000)) -> 14.74230393 | G118: 3 | H118: =(100*H95*(182)/360)/(1+(H88*(H101+182-H90)/36000))+(100*H95*(182)/360)/(1+(H88*(H101+364-H90)/36000))+(100*H95*(182)/360)/(1+(H88*(H101+546-H90)/36000)) -> 14.78398661
B119: 4 | C119: =(100*C95*(182)/360)/(1+(C88*(C101+182-C90)/36000))+(100*C95*(182)/360)/(1+(C88*(C101+364-C90)/36000))+(100*C95*(182)/360)/(1+(C88*(C101+546-C90)/36000))+(100*C95*(182)/360)/(1+(C88*(C101+728-C90)/36000)) -> 19.48752221 | G119: 4 | H119: =(100*H95*(182)/360)/(1+(H88*(H101+182-H90)/36000))+(100*H95*(182)/360)/(1+(H88*(H101+364-H90)/36000))+(100*H95*(182)/360)/(1+(H88*(H101+546-H90)/36000))+(100*H95*(182)/360)/(1+(H88*(H101+728-H90)/36000)) -> 19.54215654
B120: 5 | C120: =(100*C95*(182)/360)/(1+(C88*(C101+182-C90)/36000))+(100*C95*(182)/360)/(1+(C88*(C101+364-C90)/36000))+(100*C95*(182)/360)/(1+(C88*(C101+546-C90)/36000))+(100*C95*(182)/360)/(1+(C88*(C101+728-C90)/36000))+(100*C95*(182)/360)/(1+(C88*(C101+910-C90)/36000)) -> 24.15304044 | G120: 5 | H120: =(100*H95*(182)/360)/(1+(H88*(H101+182-H90)/36000))+(100*H95*(182)/360)/(1+(H88*(H101+364-H90)/36000))+(100*H95*(182)/360)/(1+(H88*(H101+546-H90)/36000))+(100*H95*(182)/360)/(1+(H88*(H101+728-H90)/36000))+(100*H95*(182)/360)/(1+(H88*(H101+910-H90)/36000)) -> 24.22019444
B121: 6 | C121: =(100*C95*(182)/360)/(1+(C88*(C101+182-C90)/36000))+(100*C95*(182)/360)/(1+(C88*(C101+364-C90)/36000))+(100*C95*(182)/360)/(1+(C88*(C101+546-C90)/36000))+(100*C95*(182)/360)/(1+(C88*(C101+728-C90)/36000))+(100*C95*(182)/360)/(1+(C88*(C101+910-C90)/36000))+(100*C95*(182)/360)/(1+(C88*(C101+1092-C90)/36000)) -> 28.74149166 | G121: 6 | H121: =(100*H95*(182)/360)/(1+(H88*(H101+182-H90)/36000))+(100*H95*(182)/360)/(1+(H88*(H101+364-H90)/36000))+(100*H95*(182)/360)/(1+(H88*(H101+546-H90)/36000))+(100*H95*(182)/360)/(1+(H88*(H101+728-H90)/36000))+(100*H95*(182)/360)/(1+(H88*(H101+910-H90)/36000))+(100*H95*(182)/360)/(1+(H88*(H101+1092-H90)/36000)) -> 28.8207546
B122: 7 | C122: =(100*C95*(182)/360)/(1+(C88*(C101+182-C90)/36000))+(100*C95*(182)/360)/(1+(C88*(C101+364-C90)/36000))+(100*C95*(182)/360)/(1+(C88*(C101+546-C90)/36000))+(100*C95*(182)/360)/(1+(C88*(C101+728-C90)/36000))+(100*C95*(182)/360)/(1+(C88*(C101+910-C90)/36000))+(100*C95*(182)/360)/(1+(C88*(C101+1092-C90)/36000))+(100*C95*(182)/360)/(1+(C88*(C101+1274-C90)/36000)) -> 33.25538055 | G122: 7 | H122: =(100*H95*(182)/360)/(1+(H88*(H101+182-H90)/36000))+(100*H95*(182)/360)/(1+(H88*(H101+364-H90)/36000))+(100*H95*(182)/360)/(1+(H88*(H101+546-H90)/36000))+(100*H95*(182)/360)/(1+(H88*(H101+728-H90)/36000))+(100*H95*(182)/360)/(1+(H88*(H101+910-H90)/36000))+(100*H95*(182)/360)/(1+(H88*(H101+1092-H90)/36000))+(100*H95*(182)/360)/(1+(H88*(H101+1274-H90)/36000)) -> 33.34636157
B123: 8 | C123: =(100*C95*(182)/360)/(1+(C88*(C101+182-C90)/36000))+(100*C95*(182)/360)/(1+(C88*(C101+364-C90)/36000))+(100*C95*(182)/360)/(1+(C88*(C101+546-C90)/36000))+(100*C95*(182)/360)/(1+(C88*(C101+728-C90)/36000))+(100*C95*(182)/360)/(1+(C88*(C101+910-C90)/36000))+(100*C95*(182)/360)/(1+(C88*(C101+1092-C90)/36000))+(100*C95*(182)/360)/(1+(C88*(C101+1274-C90)/36000))+(100*C95*(182)/360)/(1+(C88*(C101+1456-C90)/36000)) -> 37.69709163 | G123: 8 | H123: =(100*H95*(182)/360)/(1+(H88*(H101+182-H90)/36000))+(100*H95*(182)/360)/(1+(H88*(H101+364-H90)/36000))+(100*H95*(182)/360)/(1+(H88*(H101+546-H90)/36000))+(100*H95*(182)/360)/(1+(H88*(H101+728-H90)/36000))+(100*H95*(182)/360)/(1+(H88*(H101+910-H90)/36000))+(100*H95*(182)/360)/(1+(H88*(H101+1092-H90)/36000))+(100*H95*(182)/360)/(1+(H88*(H101+1274-H90)/36000))+(100*H95*(182)/360)/(1+(H88*(H101+1456-H90)/36000)) -> 37.79941852
B124: 9 | C124: =(100*C95*(182)/360)/(1+(C88*(C101+182-C90)/36000))+(100*C95*(182)/360)/(1+(C88*(C101+364-C90)/36000))+(100*C95*(182)/360)/(1+(C88*(C101+546-C90)/36000))+(100*C95*(182)/360)/(1+(C88*(C101+728-C90)/36000))+(100*C95*(182)/360)/(1+(C88*(C101+910-C90)/36000))+(100*C95*(182)/360)/(1+(C88*(C101+1092-C90)/36000))+(100*C95*(182)/360)/(1+(C88*(C101+1274-C90)/36000))+(100*C95*(182)/360)/(1+(C88*(C101+1456-C90)/36000))+(100*C95*(182)/360)/(1+(C88*(C101+1638-C90)/36000)) -> 42.06889685 | G124: 9 | H124: =(100*H95*(182)/360)/(1+(H88*(H101+182-H90)/36000))+(100*H95*(182)/360)/(1+(H88*(H101+364-H90)/36000))+(100*H95*(182)/360)/(1+(H88*(H101+546-H90)/36000))+(100*H95*(182)/360)/(1+(H88*(H101+728-H90)/36000))+(100*H95*(182)/360)/(1+(H88*(H101+910-H90)/36000))+(100*H95*(182)/360)/(1+(H88*(H101+1092-H90)/36000))+(100*H95*(182)/360)/(1+(H88*(H101+1274-H90)/36000))+(100*H95*(182)/360)/(1+(H88*(H101+1456-H90)/36000))+(100*H95*(182)/360)/(1+(H88*(H101+1638-H90)/36000)) -> 42.18221484
B125: 10 | C125: =(100*C95*(182)/360)/(1+(C88*(C101+182-C90)/36000))+(100*C95*(182)/360)/(1+(C88*(C101+364-C90)/36000))+(100*C95*(182)/360)/(1+(C88*(C101+546-C90)/36000))+(100*C95*(182)/360)/(1+(C88*(C101+728-C90)/36000))+(100*C95*(182)/360)/(1+(C88*(C101+910-C90)/36000))+(100*C95*(182)/360)/(1+(C88*(C101+1092-C90)/36000))+(100*C95*(182)/360)/(1+(C88*(C101+1274-C90)/36000))+(100*C95*(182)/360)/(1+(C88*(C101+1456-C90)/36000))+(100*C95*(182)/360)/(1+(C88*(C101+1638-C90)/36000))+(100*C95*(182)/360)/(1+(C88*(C101+1820-C90)/36000)) -> 46.37296254 | G125: 10 | H125: =(100*H95*(182)/360)/(1+(H88*(H101+182-H90)/36000))+(100*H95*(182)/360)/(1+(H88*(H101+364-H90)/36000))+(100*H95*(182)/360)/(1+(H88*(H101+546-H90)/36000))+(100*H95*(182)/360)/(1+(H88*(H101+728-H90)/36000))+(100*H95*(182)/360)/(1+(H88*(H101+910-H90)/36000))+(100*H95*(182)/360)/(1+(H88*(H101+1092-H90)/36000))+(100*H95*(182)/360)/(1+(H88*(H101+1274-H90)/36000))+(100*H95*(182)/360)/(1+(H88*(H101+1456-H90)/36000))+(100*H95*(182)/360)/(1+(H88*(H101+1638-H90)/36000))+(100*H95*(182)/360)/(1+(H88*(H101+1820-H90)/36000)) -> 46.49693325
A128: DICIEMBRE | B128: 1 | G128: 1
B129: 2024-12-05 | G129: 2024-12-05
B130: Tasa Fondeo | C130: =C4 -> 3.6 | G130: Tasa Fondeo | H130: =C130 -> 3.6
B132: Fecha Consulta | C132: =C90 -> 2014-03-03 | G132: Fecha Consulta | H132: =H133 -> 2014-12-31
B133: Futuro Analizado | C133: 2014-12-31 | G133: Futuro Analizado | H133: =C133 -> 2014-12-31
B134: Dias al Vencimiento del Fut. | C134: =C133-C132 -> 303 | G134: Dias al Vencimiento del Fut. | H134: =H133-H132 -> 0
B135: Fecha Vencimiento Bono | C135: =+B129 -> 2024-12-05 | G135: Fecha Vencimiento Bono | H135: =+G129 -> 2024-12-05
B136: Dias por Vencer | C136: =C135-C132 -> 3930 | G136: Dias por Vencer | H136: =H135-H132 -> 3627
B137: Tasa de Cupón | C137: 0.1 | G137: Tasa de Cupón | H137: =C137 -> 0.1
B138: Rendimiento a Vencimiento | C138: =C12 -> 0.1 | G138: Rendimiento a Vencimiento | H138: 0.109053044
B139: Dias Trans. Cupón Vigente | C139: =C132-C143 -> 74 | G139: Dias Trans. Cupón Vigente | H139: =H132-H143 -> 13
B140: Precio Limpio | C140: =100*((((C137*182/360*(1+(1/(C138*182/360))))+(((1+(C138*182/360))^(1-(INT(C136/182)+1)))*(1-((C137*182/360)/(C138*182/360)))))/((1+(C138*182/360))^((((C136/182)-INT(C136/182))*182)/182)))-((C137*182/360)*(182-((((C136/182)-INT(C136/182))*182)))/182)) -> 99.96996841 | G140: Precio Limpio | H140: =100*((((H137*182/360*(1+(1/(H138*182/360))))+(((1+(H138*182/360))^(1-(INT(H136/182)+1)))*(1-((H137*182/360)/(H138*182/360)))))/((1+(H138*182/360))^((((H136/182)-INT(H136/182))*182)/182)))-((H137*182/360)*(182-((((H136/182)-INT(H136/182))*182)))/182)) -> 94.53850222
B141: Intereses Corridos | C141: =100*((C137)*(C139/360)) -> 2.055555556 | G141: Intereses Corridos | H141: =100*((H137)*(H139/360)) -> 0.3611111111
B142: Precio Sucio | C142: =C140+C141 -> 102.025524 | G142: Precio Sucio | H142: =H140+H141 -> 94.89961333
B143: Ultimo Cupón del bono | C143: 2013-12-19 | G143: Ultimo Cupón del bono | H143: 2014-12-18
B144: Ultimo Cupón que paga AL VENCIMIENTO DEL FUTURO | C144: 2014-12-18 | G144: Ultimo Cupón que paga AL VENCIMIENTO DEL FUTURO | H144: =C144 -> 2014-12-18
B145: Siguiente Cupón del bono | C145: 2010-12-23 | G145: Siguiente Cupón del bono | H145: 2010-12-23
B146: ¿Paga Cupon(es)? | C146: =INT((C144-C143)/182) -> 2 | G146: ¿Paga Cupon(es)? | H146: =INT((H144-H143)/182) -> 0
B147: Valor Presente Cupones | C147: =IF(C146>0,IF(C146>1,IF(C146>2,IF(C146>3,IF(C146>4,IF(C146>5,IF(C146>6,IF(C146>7,C165,C164),C163),C162),C161),C160),C159),C158),0) -> 9.914615277 | G147: Valor Presente Cupones | H147: =IF(H146>0,IF(H146>1,IF(H146>2,IF(H146>3,IF(H146>4,IF(H146>5,IF(H146>6,IF(H146>7,H165,H164),H163),H162),H161),H160),H159),H158),0) -> 0
B148: Precio Bruto Con Acarreo | C148: =(C142-C147)*(1+(C130/100*C134/360)) -> 94.90186922 | G148: Precio Bruto Con Acarreo | H148: =(H142-H147)*(1+(H130/100*H134/360)) -> 94.89961333
B152: Valor Teórico del Futuro | C152: =MROUND(C148,0.1) -> 94.9 | F152: ='TASA-PRECIO'!D8 -> 94.9 | G152: Valor Teórico del Futuro | H152: =H148 -> 94.89961333
B157: Cupones | G157: Cupones
B158: 1 | C158: =(100*C137*(182)/360)/(1+(C130*(C143+182-C132)/36000)) -> 5.001538935 | G158: 1 | H158: =(100*H137*(182)/360)/(1+(H130*(H143+182-H132)/36000)) -> 4.971536587
B159: 2 | C159: =(100*C137*(182)/360)/(1+(C130*(C143+182-C132)/36000))+(100*C137*(182)/360)/(1+(C130*(C143+364-C132)/36000)) -> 9.914615277 | G159: 2 | H159: =(100*H137*(182)/360)/(1+(H130*(H143+182-H132)/36000))+(100*H137*(182)/360)/(1+(H130*(H143+364-H132)/36000)) -> 9.855659431
B160: 3 | C160: =(100*C137*(182)/360)/(1+(C130*(C143+182-C132)/36000))+(100*C137*(182)/360)/(1+(C130*(C143+364-C132)/36000))+(100*C137*(182)/360)/(1+(C130*(C143+546-C132)/36000)) -> 14.74230393 | G160: 3 | H160: =(100*H137*(182)/360)/(1+(H130*(H143+182-H132)/36000))+(100*H137*(182)/360)/(1+(H130*(H143+364-H132)/36000))+(100*H137*(182)/360)/(1+(H130*(H143+546-H132)/36000)) -> 14.65538938
B161: 4 | C161: =(100*C137*(182)/360)/(1+(C130*(C143+182-C132)/36000))+(100*C137*(182)/360)/(1+(C130*(C143+364-C132)/36000))+(100*C137*(182)/360)/(1+(C130*(C143+546-C132)/36000))+(100*C137*(182)/360)/(1+(C130*(C143+728-C132)/36000)) -> 19.48752221 | G161: 4 | H161: =(100*H137*(182)/360)/(1+(H130*(H143+182-H132)/36000))+(100*H137*(182)/360)/(1+(H130*(H143+364-H132)/36000))+(100*H137*(182)/360)/(1+(H130*(H143+546-H132)/36000))+(100*H137*(182)/360)/(1+(H130*(H143+728-H132)/36000)) -> 19.37359335
B162: 5 | C162: =(100*C137*(182)/360)/(1+(C130*(C143+182-C132)/36000))+(100*C137*(182)/360)/(1+(C130*(C143+364-C132)/36000))+(100*C137*(182)/360)/(1+(C130*(C143+546-C132)/36000))+(100*C137*(182)/360)/(1+(C130*(C143+728-C132)/36000))+(100*C137*(182)/360)/(1+(C130*(C143+910-C132)/36000)) -> 24.15304044 | G162: 5 | H162: =(100*H137*(182)/360)/(1+(H130*(H143+182-H132)/36000))+(100*H137*(182)/360)/(1+(H130*(H143+364-H132)/36000))+(100*H137*(182)/360)/(1+(H130*(H143+546-H132)/36000))+(100*H137*(182)/360)/(1+(H130*(H143+728-H132)/36000))+(100*H137*(182)/360)/(1+(H130*(H143+910-H132)/36000)) -> 24.01299461
B163: 6 | C163: =(100*C137*(182)/360)/(1+(C130*(C143+182-C132)/36000))+(100*C137*(182)/360)/(1+(C130*(C143+364-C132)/36000))+(100*C137*(182)/360)/(1+(C130*(C143+546-C132)/36000))+(100*C137*(182)/360)/(1+(C130*(C143+728-C132)/36000))+(100*C137*(182)/360)/(1+(C130*(C143+910-C132)/36000))+(100*C137*(182)/360)/(1+(C130*(C143+1092-C132)/36000)) -> 28.74149166 | G163: 6 | H163: =(100*H137*(182)/360)/(1+(H130*(H143+182-H132)/36000))+(100*H137*(182)/360)/(1+(H130*(H143+364-H132)/36000))+(100*H137*(182)/360)/(1+(H130*(H143+546-H132)/36000))+(100*H137*(182)/360)/(1+(H130*(H143+728-H132)/36000))+(100*H137*(182)/360)/(1+(H130*(H143+910-H132)/36000))+(100*H137*(182)/360)/(1+(H130*(H143+1092-H132)/36000)) -> 28.57618223
B164: 7 | C164: =(100*C137*(182)/360)/(1+(C130*(C143+182-C132)/36000))+(100*C137*(182)/360)/(1+(C130*(C143+364-C132)/36000))+(100*C137*(182)/360)/(1+(C130*(C143+546-C132)/36000))+(100*C137*(182)/360)/(1+(C130*(C143+728-C132)/36000))+(100*C137*(182)/360)/(1+(C130*(C143+910-C132)/36000))+(100*C137*(182)/360)/(1+(C130*(C143+1092-C132)/36000))+(100*C137*(182)/360)/(1+(C130*(C143+1274-C132)/36000)) -> 33.25538055 | G164: 7 | H164: =(100*H137*(182)/360)/(1+(H130*(H143+182-H132)/36000))+(100*H137*(182)/360)/(1+(H130*(H143+364-H132)/36000))+(100*H137*(182)/360)/(1+(H130*(H143+546-H132)/36000))+(100*H137*(182)/360)/(1+(H130*(H143+728-H132)/36000))+(100*H137*(182)/360)/(1+(H130*(H143+910-H132)/36000))+(100*H137*(182)/360)/(1+(H130*(H143+1092-H132)/36000))+(100*H137*(182)/360)/(1+(H130*(H143+1274-H132)/36000)) -> 33.06561971
B165: 8 | C165: =(100*C137*(182)/360)/(1+(C130*(C143+182-C132)/36000))+(100*C137*(182)/360)/(1+(C130*(C143+364-C132)/36000))+(100*C137*(182)/360)/(1+(C130*(C143+546-C132)/36000))+(100*C137*(182)/360)/(1+(C130*(C143+728-C132)/36000))+(100*C137*(182)/360)/(1+(C130*(C143+910-C132)/36000))+(100*C137*(182)/360)/(1+(C130*(C143+1092-C132)/36000))+(100*C137*(182)/360)/(1+(C130*(C143+1274-C132)/36000))+(100*C137*(182)/360)/(1+(C130*(C143+1456-C132)/36000)) -> 37.69709163 | G165: 8 | H165: =(100*H137*(182)/360)/(1+(H130*(H143+182-H132)/36000))+(100*H137*(182)/360)/(1+(H130*(H143+364-H132)/36000))+(100*H137*(182)/360)/(1+(H130*(H143+546-H132)/36000))+(100*H137*(182)/360)/(1+(H130*(H143+728-H132)/36000))+(100*H137*(182)/360)/(1+(H130*(H143+910-H132)/36000))+(100*H137*(182)/360)/(1+(H130*(H143+1092-H132)/36000))+(100*H137*(182)/360)/(1+(H130*(H143+1274-H132)/36000))+(100*H137*(182)/360)/(1+(H130*(H143+1456-H132)/36000)) -> 37.48365306
B166: 9 | C166: =(100*C137*(182)/360)/(1+(C130*(C143+182-C132)/36000))+(100*C137*(182)/360)/(1+(C130*(C143+364-C132)/36000))+(100*C137*(182)/360)/(1+(C130*(C143+546-C132)/36000))+(100*C137*(182)/360)/(1+(C130*(C143+728-C132)/36000))+(100*C137*(182)/360)/(1+(C130*(C143+910-C132)/36000))+(100*C137*(182)/360)/(1+(C130*(C143+1092-C132)/36000))+(100*C137*(182)/360)/(1+(C130*(C143+1274-C132)/36000))+(100*C137*(182)/360)/(1+(C130*(C143+1456-C132)/36000))+(100*C137*(182)/360)/(1+(C130*(C143+1638-C132)/36000)) -> 42.06889685 | G166: 9 | H166: =(100*H137*(182)/360)/(1+(H130*(H143+182-H132)/36000))+(100*H137*(182)/360)/(1+(H130*(H143+364-H132)/36000))+(100*H137*(182)/360)/(1+(H130*(H143+546-H132)/36000))+(100*H137*(182)/360)/(1+(H130*(H143+728-H132)/36000))+(100*H137*(182)/360)/(1+(H130*(H143+910-H132)/36000))+(100*H137*(182)/360)/(1+(H130*(H143+1092-H132)/36000))+(100*H137*(182)/360)/(1+(H130*(H143+1274-H132)/36000))+(100*H137*(182)/360)/(1+(H130*(H143+1456-H132)/36000))+(100*H137*(182)/360)/(1+(H130*(H143+1638-H132)/36000)) -> 41.83251805
B167: 10 | C167: =(100*C137*(182)/360)/(1+(C130*(C143+182-C132)/36000))+(100*C137*(182)/360)/(1+(C130*(C143+364-C132)/36000))+(100*C137*(182)/360)/(1+(C130*(C143+546-C132)/36000))+(100*C137*(182)/360)/(1+(C130*(C143+728-C132)/36000))+(100*C137*(182)/360)/(1+(C130*(C143+910-C132)/36000))+(100*C137*(182)/360)/(1+(C130*(C143+1092-C132)/36000))+(100*C137*(182)/360)/(1+(C130*(C143+1274-C132)/36000))+(100*C137*(182)/360)/(1+(C130*(C143+1456-C132)/36000))+(100*C137*(182)/360)/(1+(C130*(C143+1638-C132)/36000))+(100*C137*(182)/360)/(1+(C130*(C143+1820-C132)/36000)) -> 46.37296254 | G167: 10 | H167: =(100*H137*(182)/360)/(1+(H130*(H143+182-H132)/36000))+(100*H137*(182)/360)/(1+(H130*(H143+364-H132)/36000))+(100*H137*(182)/360)/(1+(H130*(H143+546-H132)/36000))+(100*H137*(182)/360)/(1+(H130*(H143+728-H132)/36000))+(100*H137*(182)/360)/(1+(H130*(H143+910-H132)/36000))+(100*H137*(182)/360)/(1+(H130*(H143+1092-H132)/36000))+(100*H137*(182)/360)/(1+(H130*(H143+1274-H132)/36000))+(100*H137*(182)/360)/(1+(H130*(H143+1456-H132)/36000))+(100*H137*(182)/360)/(1+(H130*(H143+1638-H132)/36000))+(100*H137*(182)/360)/(1+(H130*(H143+1820-H132)/36000)) -> 46.1143471

Sheet Datos DC24 (2)
B1: FUTURO M10 | G1: FUTURO M10
A2: MARZO | B2: 1 | G2: 1
B3: 2024-12-05 | G3: 2024-12-05
B4: Tasa Fondeo | C4: ='PRECIO-TASA'!B2 -> 3.6 | G4: Tasa Fondeo | H4: =C4 -> 3.6
B6: Fecha Consulta | C6: ='PRECIO-TASA'!B1 -> 2014-03-03 | G6: Fecha Consulta | H6: =H7 -> 2014-03-31
B7: Futuro Analizado | C7: 2014-03-31 | G7: Futuro Analizado | H7: =C7 -> 2014-03-31
B8: Dias al Vencimiento del Fut. | C8: =C7-C6 -> 28 | G8: Dias al Vencimiento del Fut. | H8: =H7-H6 -> 0
B9: Fecha Vencimiento Bono | C9: =+B3 -> 2024-12-05 | G9: Fecha Vencimiento Bono | H9: =+G3 -> 2024-12-05
B10: Dias por Vencer | C10: =C9-C6 -> 3930 | G10: Dias por Vencer | H10: =H9-H6 -> 3902
B11: Tasa de Cupón | C11: 0.1 | G11: Tasa de Cupón | H11: =C11 -> 0.1
B12: Rendimiento a Vencimiento | C12: 0.1035728892 | G12: Rendimiento a Vencimiento | H12: 0.1043773649
B13: Dias Trans. Cupón Vigente | C13: =C6-C17 -> 74 | G13: Dias Trans. Cupón Vigente | H13: =H6-H17 -> 102
B14: Precio Limpio | C14: =100*((((C11*182/360*(1+(1/(C12*182/360))))+(((1+(C12*182/360))^(1-(INT(C10/182)+1)))*(1-((C11*182/360)/(C12*182/360)))))/((1+(C12*182/360))^((((C10/182)-INT(C10/182))*182)/182)))-((C11*182/360)*(182-((((C10/182)-INT(C10/182))*182)))/182)) -> 97.66520465 | G14: Precio Limpio | H14: =100*((((H11*182/360*(1+(1/(H12*182/360))))+(((1+(H12*182/360))^(1-(INT(H10/182)+1)))*(1-((H11*182/360)/(H12*182/360)))))/((1+(H12*182/360))^((((H10/182)-INT(H10/182))*182)/182)))-((H11*182/360)*(182-((((H10/182)-INT(H10/182))*182)))/182)) -> 97.16667053
B15: Intereses Corridos | C15: =100*((C11)*(C13/360)) -> 2.055555556 | G15: Intereses Corridos | H15: =100*((H11)*(H13/360)) -> 2.833333333
B16: Precio Sucio | C16: =C14+C15 -> 99.72076021 | G16: Precio Sucio | H16: =H14+H15 -> 100.0000039
B17: Ultimo Cupón del bono | C17: 2013-12-19 | G17: Ultimo Cupón del bono | H17: =C17 -> 2013-12-19
B18: Ultimo Cupón que paga AL VENCIMIENTO DEL FUTURO | C18: 2013-12-19 | G18: Ultimo Cupón que paga AL VENCIMIENTO DEL FUTURO | H18: =C18 -> 2013-12-19
B19: Siguiente Cupón del bono | C19: 2011-06-23 | G19: Siguiente Cupón del bono | H19: 2011-06-23
B20: ¿Paga Cupon(es)? | C20: =INT((C18-C17)/182) -> 0 | G20: ¿Paga Cupon(es)? | H20: =INT((H18-H17)/182) -> 0
B21: Valor Presente Cupones | C21: =IF(C20>0,IF(C20>1,IF(C20>2,IF(C20>3,IF(C20>4,IF(C20>5,IF(C20>6,IF(C20>7,C39,C38),C37),C36),C35),C34),C33),C32),0) -> 0 | G21: Valor Presente Cupones | H21: =IF(H20>0,IF(H20>1,IF(H20>2,IF(H20>3,IF(H20>4,IF(H20>5,IF(H20>6,IF(H20>7,H39,H38),H37),H36),H35),H34),H33),H32),0) -> 0
B22: Precio Bruto Con Acarreo | C22: =(C16-C21)*(1+(C4/100*C8/360)) -> 99.99997834 | G22: Precio Bruto Con Acarreo | H22: =(H16-H21)*(1+(H4/100*H8/360)) -> 100.0000039
A26: ='PRECIO-TASA'!B5 -> 100 | B26: Valor Teórico del Futuro | C26: =C22 -> 99.99997834 | F26: =A26 -> 100 | G26: Valor Teórico del Futuro | H26: =H22 -> 100.0000039
B31: Cupones | G31: Cupones
B32: 1 | C32: =(100*C11*(182)/360)/(1+(C4*(C17+182-C6)/36000)) -> 5.001538935 | G32: 1 | H32: =(100*H11*(182)/360)/(1+(H4*(H17+182-H6)/36000)) -> 5.015432099
B33: 2 | C33: =(100*C11*(182)/360)/(1+(C4*(C17+182-C6)/36000))+(100*C11*(182)/360)/(1+(C4*(C17+364-C6)/36000)) -> 9.914615277 | G33: 2 | H33: =(100*H11*(182)/360)/(1+(H4*(H17+182-H6)/36000))+(100*H11*(182)/360)/(1+(H4*(H17+364-H6)/36000)) -> 9.941913833
B34: 3 | C34: =(100*C11*(182)/360)/(1+(C4*(C17+182-C6)/36000))+(100*C11*(182)/360)/(1+(C4*(C17+364-C6)/36000))+(100*C11*(182)/360)/(1+(C4*(C17+546-C6)/36000)) -> 14.74230393 | G34: 3 | H34: =(100*H11*(182)/360)/(1+(H4*(H17+182-H6)/36000))+(100*H11*(182)/360)/(1+(H4*(H17+364-H6)/36000))+(100*H11*(182)/360)/(1+(H4*(H17+546-H6)/36000)) -> 14.78254535
B35: 4 | C35: =(100*C11*(182)/360)/(1+(C4*(C17+182-C6)/36000))+(100*C11*(182)/360)/(1+(C4*(C17+364-C6)/36000))+(100*C11*(182)/360)/(1+(C4*(C17+546-C6)/36000))+(100*C11*(182)/360)/(1+(C4*(C17+728-C6)/36000)) -> 19.48752221 | G35: 4 | H35: =(100*H11*(182)/360)/(1+(H4*(H17+182-H6)/36000))+(100*H11*(182)/360)/(1+(H4*(H17+364-H6)/36000))+(100*H11*(182)/360)/(1+(H4*(H17+546-H6)/36000))+(100*H11*(182)/360)/(1+(H4*(H17+728-H6)/36000)) -> 19.5402675
B36: 5 | C36: =(100*C11*(182)/360)/(1+(C4*(C17+182-C6)/36000))+(100*C11*(182)/360)/(1+(C4*(C17+364-C6)/36000))+(100*C11*(182)/360)/(1+(C4*(C17+546-C6)/36000))+(100*C11*(182)/360)/(1+(C4*(C17+728-C6)/36000))+(100*C11*(182)/360)/(1+(C4*(C17+910-C6)/36000)) -> 24.15304044 | G36: 5 | H36: =(100*H11*(182)/360)/(1+(H4*(H17+182-H6)/36000))+(100*H11*(182)/360)/(1+(H4*(H17+364-H6)/36000))+(100*H11*(182)/360)/(1+(H4*(H17+546-H6)/36000))+(100*H11*(182)/360)/(1+(H4*(H17+728-H6)/36000))+(100*H11*(182)/360)/(1+(H4*(H17+910-H6)/36000)) -> 24.21787256
B37: 6 | C37: =(100*C11*(182)/360)/(1+(C4*(C17+182-C6)/36000))+(100*C11*(182)/360)/(1+(C4*(C17+364-C6)/36000))+(100*C11*(182)/360)/(1+(C4*(C17+546-C6)/36000))+(100*C11*(182)/360)/(1+(C4*(C17+728-C6)/36000))+(100*C11*(182)/360)/(1+(C4*(C17+910-C6)/36000))+(100*C11*(182)/360)/(1+(C4*(C17+1092-C6)/36000)) -> 28.74149166 | G37: 6 | H37: =(100*H11*(182)/360)/(1+(H4*(H17+182-H6)/36000))+(100*H11*(182)/360)/(1+(H4*(H17+364-H6)/36000))+(100*H11*(182)/360)/(1+(H4*(H17+546-H6)/36000))+(100*H11*(182)/360)/(1+(H4*(H17+728-H6)/36000))+(100*H11*(182)/360)/(1+(H4*(H17+910-H6)/36000))+(100*H11*(182)/360)/(1+(H4*(H17+1092-H6)/36000)) -> 28.81801411
B38: 7 | C38: =(100*C11*(182)/360)/(1+(C4*(C17+182-C6)/36000))+(100*C11*(182)/360)/(1+(C4*(C17+364-C6)/36000))+(100*C11*(182)/360)/(1+(C4*(C17+546-C6)/36000))+(100*C11*(182)/360)/(1+(C4*(C17+728-C6)/36000))+(100*C11*(182)/360)/(1+(C4*(C17+910-C6)/36000))+(100*C11*(182)/360)/(1+(C4*(C17+1092-C6)/36000))+(100*C11*(182)/360)/(1+(C4*(C17+1274-C6)/36000)) -> 33.25538055 | G38: 7 | H38: =(100*H11*(182)/360)/(1+(H4*(H17+182-H6)/36000))+(100*H11*(182)/360)/(1+(H4*(H17+364-H6)/36000))+(100*H11*(182)/360)/(1+(H4*(H17+546-H6)/36000))+(100*H11*(182)/360)/(1+(H4*(H17+728-H6)/36000))+(100*H11*(182)/360)/(1+(H4*(H17+910-H6)/36000))+(100*H11*(182)/360)/(1+(H4*(H17+1092-H6)/36000))+(100*H11*(182)/360)/(1+(H4*(H17+1274-H6)/36000)) -> 33.343216
B39: 8 | C39: =(100*C11*(182)/360)/(1+(C4*(C17+182-C6)/36000))+(100*C11*(182)/360)/(1+(C4*(C17+364-C6)/36000))+(100*C11*(182)/360)/(1+(C4*(C17+546-C6)/36000))+(100*C11*(182)/360)/(1+(C4*(C17+728-C6)/36000))+(100*C11*(182)/360)/(1+(C4*(C17+910-C6)/36000))+(100*C11*(182)/360)/(1+(C4*(C17+1092-C6)/36000))+(100*C11*(182)/360)/(1+(C4*(C17+1274-C6)/36000))+(100*C11*(182)/360)/(1+(C4*(C17+1456-C6)/36000)) -> 37.69709163 | G39: 8 | H39: =(100*H11*(182)/360)/(1+(H4*(H17+182-H6)/36000))+(100*H11*(182)/360)/(1+(H4*(H17+364-H6)/36000))+(100*H11*(182)/360)/(1+(H4*(H17+546-H6)/36000))+(100*H11*(182)/360)/(1+(H4*(H17+728-H6)/36000))+(100*H11*(182)/360)/(1+(H4*(H17+910-H6)/36000))+(100*H11*(182)/360)/(1+(H4*(H17+1092-H6)/36000))+(100*H11*(182)/360)/(1+(H4*(H17+1274-H6)/36000))+(100*H11*(182)/360)/(1+(H4*(H17+1456-H6)/36000)) -> 37.79588075
B40: 9 | C40: =(100*C11*(182)/360)/(1+(C4*(C17+182-C6)/36000))+(100*C11*(182)/360)/(1+(C4*(C17+364-C6)/36000))+(100*C11*(182)/360)/(1+(C4*(C17+546-C6)/36000))+(100*C11*(182)/360)/(1+(C4*(C17+728-C6)/36000))+(100*C11*(182)/360)/(1+(C4*(C17+910-C6)/36000))+(100*C11*(182)/360)/(1+(C4*(C17+1092-C6)/36000))+(100*C11*(182)/360)/(1+(C4*(C17+1274-C6)/36000))+(100*C11*(182)/360)/(1+(C4*(C17+1456-C6)/36000))+(100*C11*(182)/360)/(1+(C4*(C17+1638-C6)/36000)) -> 42.06889685 | G40: 9 | H40: =(100*H11*(182)/360)/(1+(H4*(H17+182-H6)/36000))+(100*H11*(182)/360)/(1+(H4*(H17+364-H6)/36000))+(100*H11*(182)/360)/(1+(H4*(H17+546-H6)/36000))+(100*H11*(182)/360)/(1+(H4*(H17+728-H6)/36000))+(100*H11*(182)/360)/(1+(H4*(H17+910-H6)/36000))+(100*H11*(182)/360)/(1+(H4*(H17+1092-H6)/36000))+(100*H11*(182)/360)/(1+(H4*(H17+1274-H6)/36000))+(100*H11*(182)/360)/(1+(H4*(H17+1456-H6)/36000))+(100*H11*(182)/360)/(1+(H4*(H17+1638-H6)/36000)) -> 42.17829715
B41: 10 | C41: =(100*C11*(182)/360)/(1+(C4*(C17+182-C6)/36000))+(100*C11*(182)/360)/(1+(C4*(C17+364-C6)/36000))+(100*C11*(182)/360)/(1+(C4*(C17+546-C6)/36000))+(100*C11*(182)/360)/(1+(C4*(C17+728-C6)/36000))+(100*C11*(182)/360)/(1+(C4*(C17+910-C6)/36000))+(100*C11*(182)/360)/(1+(C4*(C17+1092-C6)/36000))+(100*C11*(182)/360)/(1+(C4*(C17+1274-C6)/36000))+(100*C11*(182)/360)/(1+(C4*(C17+1456-C6)/36000))+(100*C11*(182)/360)/(1+(C4*(C17+1638-C6)/36000))+(100*C11*(182)/360)/(1+(C4*(C17+1820-C6)/36000)) -> 46.37296254 | G41: 10 | H41: =(100*H11*(182)/360)/(1+(H4*(H17+182-H6)/36000))+(100*H11*(182)/360)/(1+(H4*(H17+364-H6)/36000))+(100*H11*(182)/360)/(1+(H4*(H17+546-H6)/36000))+(100*H11*(182)/360)/(1+(H4*(H17+728-H6)/36000))+(100*H11*(182)/360)/(1+(H4*(H17+910-H6)/36000))+(100*H11*(182)/360)/(1+(H4*(H17+1092-H6)/36000))+(100*H11*(182)/360)/(1+(H4*(H17+1274-H6)/36000))+(100*H11*(182)/360)/(1+(H4*(H17+1456-H6)/36000))+(100*H11*(182)/360)/(1+(H4*(H17+1638-H6)/36000))+(100*H11*(182)/360)/(1+(H4*(H17+1820-H6)/36000)) -> 46.49264734
A44: JUNIO | B44: 1 | G44: 1
B45: 2024-12-05 | G45: 2024-12-05
B46: Tasa Fondeo | C46: =C4 -> 3.6 | G46: Tasa Fondeo | H46: =H4 -> 3.6
B48: Fecha Consulta | C48: =C6 -> 2014-03-03 | G48: Fecha Consulta | H48: =H49 -> 2014-06-30
B49: Futuro Analizado | C49: 2014-06-30 | G49: Futuro Analizado | H49: =C49 -> 2014-06-30
B50: Dias al Vencimiento del Fut. | C50: =C49-C48 -> 119 | G50: Dias al Vencimiento del Fut. | H50: =H49-H48 -> 0
B51: Fecha Vencimiento Bono | C51: =+B45 -> 2024-12-05 | G51: Fecha Vencimiento Bono | H51: =+G45 -> 2024-12-05
B52: Dias por Vencer | C52: =C51-C48 -> 3930 | G52: Dias por Vencer | H52: =H51-H48 -> 3811
B53: Tasa de Cupón | C53: 0.1 | G53: Tasa de Cupón | H53: =C53 -> 0.1
B54: Rendimiento a Vencimiento | C54: 0.0972879878 | G54: Rendimiento a Vencimiento | H54: 0.1004631663
B55: Dias Trans. Cupón Vigente | C55: =C48-C59 -> 74 | G55: Dias Trans. Cupón Vigente | H55: =H48-H59 -> 11
B56: Precio Limpio | C56: =100*((((C53*182/360*(1+(1/(C54*182/360))))+(((1+(C54*182/360))^(1-(INT(C52/182)+1)))*(1-((C53*182/360)/(C54*182/360)))))/((1+(C54*182/360))^((((C52/182)-INT(C52/182))*182)/182)))-((C53*182/360)*(182-((((C52/182)-INT(C52/182))*182)))/182)) -> 101.7698907 | G56: Precio Limpio | H56: =100*((((H53*182/360*(1+(1/(H54*182/360))))+(((1+(H54*182/360))^(1-(INT(H52/182)+1)))*(1-((H53*182/360)/(H54*182/360)))))/((1+(H54*182/360))^((((H52/182)-INT(H52/182))*182)/182)))-((H53*182/360)*(182-((((H52/182)-INT(H52/182))*182)))/182)) -> 99.6952891
B57: Intereses Corridos | C57: =100*((C53)*(C55/360)) -> 2.055555556 | G57: Intereses Corridos | H57: =100*((H53)*(H55/360)) -> 0.3055555556
B58: Precio Sucio | C58: =C56+C57 -> 103.8254463 | G58: Precio Sucio | H58: =H56+H57 -> 100.0008447
B59: Ultimo Cupón del bono | C59: 2013-12-19 | G59: Ultimo Cupón del bono | H59: 2014-06-19
B60: Ultimo Cupón que paga AL VENCIMIENTO DEL FUTURO | C60: 2014-06-19 | G60: Ultimo Cupón que paga AL VENCIMIENTO DEL FUTURO | H60: =C60 -> 2014-06-19
B61: Siguiente Cupón del bono | C61: 2010-12-23 | G61: Siguiente Cupón del bono | H61: 2010-12-23
B62: ¿Paga Cupon(es)? | C62: =INT((C60-C59)/182) -> 1 | G62: ¿Paga Cupon(es)? | H62: =INT((H60-H59)/182) -> 0
B63: Valor Presente Cupones | C63: =IF(C62>0,IF(C62>1,IF(C62>2,IF(C62>3,IF(C62>4,IF(C62>5,IF(C62>6,IF(C62>7,C81,C80),C79),C78),C77),C76),C75),C74),0) -> 5.001538935 | G63: Valor Presente Cupones | H63: =IF(H62>0,IF(H62>1,IF(H62>2,IF(H62>3,IF(H62>4,IF(H62>5,IF(H62>6,IF(H62>7,H81,H80),H79),H78),H77),H76),H75),H74),0) -> 0
B64: Precio Bruto Con Acarreo | C64: =(C58-C63)*(1+(C46/100*C50/360)) -> 99.99991183 | G64: Precio Bruto Con Acarreo | H64: =(H58-H63)*(1+(H46/100*H50/360)) -> 100.0008447
A68: ='PRECIO-TASA'!B6 -> 100 | B68: Valor Teórico del Futuro | C68: =C64 -> 99.99991183 | F68: =A68 -> 100 | G68: Valor Teórico del Futuro | H68: =H64 -> 100.0008447
B73: Cupones | G73: Cupones
B74: 1 | C74: =(100*C53*(182)/360)/(1+(C46*(C59+182-C48)/36000)) -> 5.001538935 | G74: 1 | H74: =(100*H53*(182)/360)/(1+(H46*(H59+182-H48)/36000)) -> 4.970558997
B75: 2 | C75: =(100*C53*(182)/360)/(1+(C46*(C59+182-C48)/36000))+(100*C53*(182)/360)/(1+(C46*(C59+364-C48)/36000)) -> 9.914615277 | G75: 2 | H75: =(100*H53*(182)/360)/(1+(H46*(H59+182-H48)/36000))+(100*H53*(182)/360)/(1+(H46*(H59+364-H48)/36000)) -> 9.853738322
B76: 3 | C76: =(100*C53*(182)/360)/(1+(C46*(C59+182-C48)/36000))+(100*C53*(182)/360)/(1+(C46*(C59+364-C48)/36000))+(100*C53*(182)/360)/(1+(C46*(C59+546-C48)/36000)) -> 14.74230393 | G76: 3 | H76: =(100*H53*(182)/360)/(1+(H46*(H59+182-H48)/36000))+(100*H53*(182)/360)/(1+(H46*(H59+364-H48)/36000))+(100*H53*(182)/360)/(1+(H46*(H59+546-H48)/36000)) -> 14.65255707
B77: 4 | C77: =(100*C53*(182)/360)/(1+(C46*(C59+182-C48)/36000))+(100*C53*(182)/360)/(1+(C46*(C59+364-C48)/36000))+(100*C53*(182)/360)/(1+(C46*(C59+546-C48)/36000))+(100*C53*(182)/360)/(1+(C46*(C59+728-C48)/36000)) -> 19.48752221 | G77: 4 | H77: =(100*H53*(182)/360)/(1+(H46*(H59+182-H48)/36000))+(100*H53*(182)/360)/(1+(H46*(H59+364-H48)/36000))+(100*H53*(182)/360)/(1+(H46*(H59+546-H48)/36000))+(100*H53*(182)/360)/(1+(H46*(H59+728-H48)/36000)) -> 19.36988054
B78: 5 | C78: =(100*C53*(182)/360)/(1+(C46*(C59+182-C48)/36000))+(100*C53*(182)/360)/(1+(C46*(C59+364-C48)/36000))+(100*C53*(182)/360)/(1+(C46*(C59+546-C48)/36000))+(100*C53*(182)/360)/(1+(C46*(C59+728-C48)/36000))+(100*C53*(182)/360)/(1+(C46*(C59+910-C48)/36000)) -> 24.15304044 | G78: 5 | H78: =(100*H53*(182)/360)/(1+(H46*(H59+182-H48)/36000))+(100*H53*(182)/360)/(1+(H46*(H59+364-H48)/36000))+(100*H53*(182)/360)/(1+(H46*(H59+546-H48)/36000))+(100*H53*(182)/360)/(1+(H46*(H59+728-H48)/36000))+(100*H53*(182)/360)/(1+(H46*(H59+910-H48)/36000)) -> 24.00843046
B79: 6 | C79: =(100*C53*(182)/360)/(1+(C46*(C59+182-C48)/36000))+(100*C53*(182)/360)/(1+(C46*(C59+364-C48)/36000))+(100*C53*(182)/360)/(1+(C46*(C59+546-C48)/36000))+(100*C53*(182)/360)/(1+(C46*(C59+728-C48)/36000))+(100*C53*(182)/360)/(1+(C46*(C59+910-C48)/36000))+(100*C53*(182)/360)/(1+(C46*(C59+1092-C48)/36000)) -> 28.74149166 | G79: 6 | H79: =(100*H53*(182)/360)/(1+(H46*(H59+182-H48)/36000))+(100*H53*(182)/360)/(1+(H46*(H59+364-H48)/36000))+(100*H53*(182)/360)/(1+(H46*(H59+546-H48)/36000))+(100*H53*(182)/360)/(1+(H46*(H59+728-H48)/36000))+(100*H53*(182)/360)/(1+(H46*(H59+910-H48)/36000))+(100*H53*(182)/360)/(1+(H46*(H59+1092-H48)/36000)) -> 28.57079446
B80: 7 | C80: =(100*C53*(182)/360)/(1+(C46*(C59+182-C48)/36000))+(100*C53*(182)/360)/(1+(C46*(C59+364-C48)/36000))+(100*C53*(182)/360)/(1+(C46*(C59+546-C48)/36000))+(100*C53*(182)/360)/(1+(C46*(C59+728-C48)/36000))+(100*C53*(182)/360)/(1+(C46*(C59+910-C48)/36000))+(100*C53*(182)/360)/(1+(C46*(C59+1092-C48)/36000))+(100*C53*(182)/360)/(1+(C46*(C59+1274-C48)/36000)) -> 33.25538055 | G80: 7 | H80: =(100*H53*(182)/360)/(1+(H46*(H59+182-H48)/36000))+(100*H53*(182)/360)/(1+(H46*(H59+364-H48)/36000))+(100*H53*(182)/360)/(1+(H46*(H59+546-H48)/36000))+(100*H53*(182)/360)/(1+(H46*(H59+728-H48)/36000))+(100*H53*(182)/360)/(1+(H46*(H59+910-H48)/36000))+(100*H53*(182)/360)/(1+(H46*(H59+1092-H48)/36000))+(100*H53*(182)/360)/(1+(H46*(H59+1274-H48)/36000)) -> 33.05943475
B81: 8 | C81: =(100*C53*(182)/360)/(1+(C46*(C59+182-C48)/36000))+(100*C53*(182)/360)/(1+(C46*(C59+364-C48)/36000))+(100*C53*(182)/360)/(1+(C46*(C59+546-C48)/36000))+(100*C53*(182)/360)/(1+(C46*(C59+728-C48)/36000))+(100*C53*(182)/360)/(1+(C46*(C59+910-C48)/36000))+(100*C53*(182)/360)/(1+(C46*(C59+1092-C48)/36000))+(100*C53*(182)/360)/(1+(C46*(C59+1274-C48)/36000))+(100*C53*(182)/360)/(1+(C46*(C59+1456-C48)/36000)) -> 37.69709163 | G81: 8 | H81: =(100*H53*(182)/360)/(1+(H46*(H59+182-H48)/36000))+(100*H53*(182)/360)/(1+(H46*(H59+364-H48)/36000))+(100*H53*(182)/360)/(1+(H46*(H59+546-H48)/36000))+(100*H53*(182)/360)/(1+(H46*(H59+728-H48)/36000))+(100*H53*(182)/360)/(1+(H46*(H59+910-H48)/36000))+(100*H53*(182)/360)/(1+(H46*(H59+1092-H48)/36000))+(100*H53*(182)/360)/(1+(H46*(H59+1274-H48)/36000))+(100*H53*(182)/360)/(1+(H46*(H59+1456-H48)/36000)) -> 37.47669605
B82: 9 | C82: =(100*C53*(182)/360)/(1+(C46*(C59+182-C48)/36000))+(100*C53*(182)/360)/(1+(C46*(C59+364-C48)/36000))+(100*C53*(182)/360)/(1+(C46*(C59+546-C48)/36000))+(100*C53*(182)/360)/(1+(C46*(C59+728-C48)/36000))+(100*C53*(182)/360)/(1+(C46*(C59+910-C48)/36000))+(100*C53*(182)/360)/(1+(C46*(C59+1092-C48)/36000))+(100*C53*(182)/360)/(1+(C46*(C59+1274-C48)/36000))+(100*C53*(182)/360)/(1+(C46*(C59+1456-C48)/36000))+(100*C53*(182)/360)/(1+(C46*(C59+1638-C48)/36000)) -> 42.06889685 | G82: 9 | H82: =(100*H53*(182)/360)/(1+(H46*(H59+182-H48)/36000))+(100*H53*(182)/360)/(1+(H46*(H59+364-H48)/36000))+(100*H53*(182)/360)/(1+(H46*(H59+546-H48)/36000))+(100*H53*(182)/360)/(1+(H46*(H59+728-H48)/36000))+(100*H53*(182)/360)/(1+(H46*(H59+910-H48)/36000))+(100*H53*(182)/360)/(1+(H46*(H59+1092-H48)/36000))+(100*H53*(182)/360)/(1+(H46*(H59+1274-H48)/36000))+(100*H53*(182)/360)/(1+(H46*(H59+1456-H48)/36000))+(100*H53*(182)/360)/(1+(H46*(H59+1638-H48)/36000)) -> 41.82481298
B83: 10 | C83: =(100*C53*(182)/360)/(1+(C46*(C59+182-C48)/36000))+(100*C53*(182)/360)/(1+(C46*(C59+364-C48)/36000))+(100*C53*(182)/360)/(1+(C46*(C59+546-C48)/36000))+(100*C53*(182)/360)/(1+(C46*(C59+728-C48)/36000))+(100*C53*(182)/360)/(1+(C46*(C59+910-C48)/36000))+(100*C53*(182)/360)/(1+(C46*(C59+1092-C48)/36000))+(100*C53*(182)/360)/(1+(C46*(C59+1274-C48)/36000))+(100*C53*(182)/360)/(1+(C46*(C59+1456-C48)/36000))+(100*C53*(182)/360)/(1+(C46*(C59+1638-C48)/36000))+(100*C53*(182)/360)/(1+(C46*(C59+1820-C48)/36000)) -> 46.37296254 | G83: 10 | H83: =(100*H53*(182)/360)/(1+(H46*(H59+182-H48)/36000))+(100*H53*(182)/360)/(1+(H46*(H59+364-H48)/36000))+(100*H53*(182)/360)/(1+(H46*(H59+546-H48)/36000))+(100*H53*(182)/360)/(1+(H46*(H59+728-H48)/36000))+(100*H53*(182)/360)/(1+(H46*(H59+910-H48)/36000))+(100*H53*(182)/360)/(1+(H46*(H59+1092-H48)/36000))+(100*H53*(182)/360)/(1+(H46*(H59+1274-H48)/36000))+(100*H53*(182)/360)/(1+(H46*(H59+1456-H48)/36000))+(100*H53*(182)/360)/(1+(H46*(H59+1638-H48)/36000))+(100*H53*(182)/360)/(1+(H46*(H59+1820-H48)/36000)) -> 46.10591684
A86: SEPTIEMBRE | B86: 1 | G86: 1
B87: 2024-12-05 | G87: 2024-12-05
B88: Tasa Fondeo | C88: =C4 -> 3.6 | G88: Tasa Fondeo | H88: =H4 -> 3.6
B90: Fecha Consulta | C90: =C48 -> 2014-03-03 | G90: Fecha Consulta | H90: =H91 -> 2014-09-30
B91: Futuro Analizado | C91: 2014-09-30 | G91: Futuro Analizado | H91: =C91 -> 2014-09-30
B92: Dias al Vencimiento del Fut. | C92: =C91-C90 -> 211 | G92: Dias al Vencimiento del Fut. | H92: =H91-H90 -> 0
B93: Fecha Vencimiento Bono | C93: =+B87 -> 2024-12-05 | G93: Fecha Vencimiento Bono | H93: =+G87 -> 2024-12-05
B94: Dias por Vencer | C94: =C93-C90 -> 3930 | G94: Dias por Vencer | H94: =H93-H90 -> 3719
B95: Tasa de Cupón | C95: 0.1 | G95: Tasa de Cupón | H95: =C95 -> 0.1
B96: Rendimiento a Vencimiento | C96: 0.09862132435 | G96: Rendimiento a Vencimiento | H96: 0.1045438663
B97: Dias Trans. Cupón Vigente | C97: =C90-C101 -> 74 | G97: Dias Trans. Cupón Vigente | H97: =H90-H101 -> 103
B98: Precio Limpio | C98: =100*((((C95*182/360*(1+(1/(C96*182/360))))+(((1+(C96*182/360))^(1-(INT(C94/182)+1)))*(1-((C95*182/360)/(C96*182/360)))))/((1+(C96*182/360))^((((C94/182)-INT(C94/182))*182)/182)))-((C95*182/360)*(182-((((C94/182)-INT(C94/182))*182)))/182)) -> 100.8794371 | G98: Precio Limpio | H98: =100*((((H95*182/360*(1+(1/(H96*182/360))))+(((1+(H96*182/360))^(1-(INT(H94/182)+1)))*(1-((H95*182/360)/(H96*182/360)))))/((1+(H96*182/360))^((((H94/182)-INT(H94/182))*182)/182)))-((H95*182/360)*(182-((((H94/182)-INT(H94/182))*182)))/182)) -> 97.13889014
B99: Intereses Corridos | C99: =100*((C95)*(C97/360)) -> 2.055555556 | G99: Intereses Corridos | H99: =100*((H95)*(H97/360)) -> 2.861111111
B100: Precio Sucio | C100: =C98+C99 -> 102.9349927 | G100: Precio Sucio | H100: =H98+H99 -> 100.0000012
B101: Ultimo Cupón del bono | C101: 2013-12-19 | G101: Ultimo Cupón del bono | H101: 2014-06-19
B102: Ultimo Cupón que paga AL VENCIMIENTO DEL FUTURO | C102: 2014-06-19 | G102: Ultimo Cupón que paga AL VENCIMIENTO DEL FUTURO | H102: =C102 -> 2014-06-19
B103: Siguiente Cupón del bono | C103: 2010-12-23 | G103: Siguiente Cupón del bono | H103: 2010-12-23
B104: ¿Paga Cupon(es)? | C104: =INT((C102-C101)/182) -> 1 | G104: ¿Paga Cupon(es)? | H104: =INT((H102-H101)/182) -> 0
B105: Valor Presente Cupones | C105: =IF(C104>0,IF(C104>1,IF(C104>2,IF(C104>3,IF(C104>4,IF(C104>5,IF(C104>6,IF(C104>7,C123,C122),C121),C120),C119),C118),C117),C116),0) -> 5.001538935 | G105: Valor Presente Cupones | H105: =IF(H104>0,IF(H104>1,IF(H104>2,IF(H104>3,IF(H104>4,IF(H104>5,IF(H104>6,IF(H104>7,H123,H122),H121),H120),H119),H118),H117),H116),0) -> 0
B106: Precio Bruto Con Acarreo | C106: =(C100-C105)*(1+(C88/100*C92/360)) -> 99.99984961 | G106: Precio Bruto Con Acarreo | H106: =(H100-H105)*(1+(H88/100*H92/360)) -> 100.0000012
A110: ='PRECIO-TASA'!B7 -> 100 | B110: Valor Teórico del Futuro | C110: =C106 -> 99.99984961 | F110: =A110 -> 100 | G110: Valor Teórico del Futuro | H110: =H106 -> 100.0000012
B115: Cupones | G115: Cupones
B116: 1 | C116: =(100*C95*(182)/360)/(1+(C88*(C101+182-C90)/36000)) -> 5.001538935 | G116: 1 | H116: =(100*H95*(182)/360)/(1+(H88*(H101+182-H90)/36000)) -> 5.015929711
B117: 2 | C117: =(100*C95*(182)/360)/(1+(C88*(C101+182-C90)/36000))+(100*C95*(182)/360)/(1+(C88*(C101+364-C90)/36000)) -> 9.914615277 | G117: 2 | H117: =(100*H95*(182)/360)/(1+(H88*(H101+182-H90)/36000))+(100*H95*(182)/360)/(1+(H88*(H101+364-H90)/36000)) -> 9.942891562
B118: 3 | C118: =(100*C95*(182)/360)/(1+(C88*(C101+182-C90)/36000))+(100*C95*(182)/360)/(1+(C88*(C101+364-C90)/36000))+(100*C95*(182)/360)/(1+(C88*(C101+546-C90)/36000)) -> 14.74230393 | G118: 3 | H118: =(100*H95*(182)/360)/(1+(H88*(H101+182-H90)/36000))+(100*H95*(182)/360)/(1+(H88*(H101+364-H90)/36000))+(100*H95*(182)/360)/(1+(H88*(H101+546-H90)/36000)) -> 14.78398661
B119: 4 | C119: =(100*C95*(182)/360)/(1+(C88*(C101+182-C90)/36000))+(100*C95*(182)/360)/(1+(C88*(C101+364-C90)/36000))+(100*C95*(182)/360)/(1+(C88*(C101+546-C90)/36000))+(100*C95*(182)/360)/(1+(C88*(C101+728-C90)/36000)) -> 19.48752221 | G119: 4 | H119: =(100*H95*(182)/360)/(1+(H88*(H101+182-H90)/36000))+(100*H95*(182)/360)/(1+(H88*(H101+364-H90)/36000))+(100*H95*(182)/360)/(1+(H88*(H101+546-H90)/36000))+(100*H95*(182)/360)/(1+(H88*(H101+728-H90)/36000)) -> 19.54215654
B120: 5 | C120: =(100*C95*(182)/360)/(1+(C88*(C101+182-C90)/36000))+(100*C95*(182)/360)/(1+(C88*(C101+364-C90)/36000))+(100*C95*(182)/360)/(1+(C88*(C101+546-C90)/36000))+(100*C95*(182)/360)/(1+(C88*(C101+728-C90)/36000))+(100*C95*(182)/360)/(1+(C88*(C101+910-C90)/36000)) -> 24.15304044 | G120: 5 | H120: =(100*H95*(182)/360)/(1+(H88*(H101+182-H90)/36000))+(100*H95*(182)/360)/(1+(H88*(H101+364-H90)/36000))+(100*H95*(182)/360)/(1+(H88*(H101+546-H90)/36000))+(100*H95*(182)/360)/(1+(H88*(H101+728-H90)/36000))+(100*H95*(182)/360)/(1+(H88*(H101+910-H90)/36000)) -> 24.22019444
B121: 6 | C121: =(100*C95*(182)/360)/(1+(C88*(C101+182-C90)/36000))+(100*C95*(182)/360)/(1+(C88*(C101+364-C90)/36000))+(100*C95*(182)/360)/(1+(C88*(C101+546-C90)/36000))+(100*C95*(182)/360)/(1+(C88*(C101+728-C90)/36000))+(100*C95*(182)/360)/(1+(C88*(C101+910-C90)/36000))+(100*C95*(182)/360)/(1+(C88*(C101+1092-C90)/36000)) -> 28.74149166 | G121: 6 | H121: =(100*H95*(182)/360)/(1+(H88*(H101+182-H90)/36000))+(100*H95*(182)/360)/(1+(H88*(H101+364-H90)/36000))+(100*H95*(182)/360)/(1+(H88*(H101+546-H90)/36000))+(100*H95*(182)/360)/(1+(H88*(H101+728-H90)/36000))+(100*H95*(182)/360)/(1+(H88*(H101+910-H90)/36000))+(100*H95*(182)/360)/(1+(H88*(H101+1092-H90)/36000)) -> 28.8207546
B122: 7 | C122: =(100*C95*(182)/360)/(1+(C88*(C101+182-C90)/36000))+(100*C95*(182)/360)/(1+(C88*(C101+364-C90)/36000))+(100*C95*(182)/360)/(1+(C88*(C101+546-C90)/36000))+(100*C95*(182)/360)/(1+(C88*(C101+728-C90)/36000))+(100*C95*(182)/360)/(1+(C88*(C101+910-C90)/36000))+(100*C95*(182)/360)/(1+(C88*(C101+1092-C90)/36000))+(100*C95*(182)/360)/(1+(C88*(C101+1274-C90)/36000)) -> 33.25538055 | G122: 7 | H122: =(100*H95*(182)/360)/(1+(H88*(H101+182-H90)/36000))+(100*H95*(182)/360)/(1+(H88*(H101+364-H90)/36000))+(100*H95*(182)/360)/(1+(H88*(H101+546-H90)/36000))+(100*H95*(182)/360)/(1+(H88*(H101+728-H90)/36000))+(100*H95*(182)/360)/(1+(H88*(H101+910-H90)/36000))+(100*H95*(182)/360)/(1+(H88*(H101+1092-H90)/36000))+(100*H95*(182)/360)/(1+(H88*(H101+1274-H90)/36000)) -> 33.34636157
B123: 8 | C123: =(100*C95*(182)/360)/(1+(C88*(C101+182-C90)/36000))+(100*C95*(182)/360)/(1+(C88*(C101+364-C90)/36000))+(100*C95*(182)/360)/(1+(C88*(C101+546-C90)/36000))+(100*C95*(182)/360)/(1+(C88*(C101+728-C90)/36000))+(100*C95*(182)/360)/(1+(C88*(C101+910-C90)/36000))+(100*C95*(182)/360)/(1+(C88*(C101+1092-C90)/36000))+(100*C95*(182)/360)/(1+(C88*(C101+1274-C90)/36000))+(100*C95*(182)/360)/(1+(C88*(C101+1456-C90)/36000)) -> 37.69709163 | G123: 8 | H123: =(100*H95*(182)/360)/(1+(H88*(H101+182-H90)/36000))+(100*H95*(182)/360)/(1+(H88*(H101+364-H90)/36000))+(100*H95*(182)/360)/(1+(H88*(H101+546-H90)/36000))+(100*H95*(182)/360)/(1+(H88*(H101+728-H90)/36000))+(100*H95*(182)/360)/(1+(H88*(H101+910-H90)/36000))+(100*H95*(182)/360)/(1+(H88*(H101+1092-H90)/36000))+(100*H95*(182)/360)/(1+(H88*(H101+1274-H90)/36000))+(100*H95*(182)/360)/(1+(H88*(H101+1456-H90)/36000)) -> 37.79941852
B124: 9 | C124: =(100*C95*(182)/360)/(1+(C88*(C101+182-C90)/36000))+(100*C95*(182)/360)/(1+(C88*(C101+364-C90)/36000))+(100*C95*(182)/360)/(1+(C88*(C101+546-C90)/36000))+(100*C95*(182)/360)/(1+(C88*(C101+728-C90)/36000))+(100*C95*(182)/360)/(1+(C88*(C101+910-C90)/36000))+(100*C95*(182)/360)/(1+(C88*(C101+1092-C90)/36000))+(100*C95*(182)/360)/(1+(C88*(C101+1274-C90)/36000))+(100*C95*(182)/360)/(1+(C88*(C101+1456-C90)/36000))+(100*C95*(182)/360)/(1+(C88*(C101+1638-C90)/36000)) -> 42.06889685 | G124: 9 | H124: =(100*H95*(182)/360)/(1+(H88*(H101+182-H90)/36000))+(100*H95*(182)/360)/(1+(H88*(H101+364-H90)/36000))+(100*H95*(182)/360)/(1+(H88*(H101+546-H90)/36000))+(100*H95*(182)/360)/(1+(H88*(H101+728-H90)/36000))+(100*H95*(182)/360)/(1+(H88*(H101+910-H90)/36000))+(100*H95*(182)/360)/(1+(H88*(H101+1092-H90)/36000))+(100*H95*(182)/360)/(1+(H88*(H101+1274-H90)/36000))+(100*H95*(182)/360)/(1+(H88*(H101+1456-H90)/36000))+(100*H95*(182)/360)/(1+(H88*(H101+1638-H90)/36000)) -> 42.18221484
B125: 10 | C125: =(100*C95*(182)/360)/(1+(C88*(C101+182-C90)/36000))+(100*C95*(182)/360)/(1+(C88*(C101+364-C90)/36000))+(100*C95*(182)/360)/(1+(C88*(C101+546-C90)/36000))+(100*C95*(182)/360)/(1+(C88*(C101+728-C90)/36000))+(100*C95*(182)/360)/(1+(C88*(C101+910-C90)/36000))+(100*C95*(182)/360)/(1+(C88*(C101+1092-C90)/36000))+(100*C95*(182)/360)/(1+(C88*(C101+1274-C90)/36000))+(100*C95*(182)/360)/(1+(C88*(C101+1456-C90)/36000))+(100*C95*(182)/360)/(1+(C88*(C101+1638-C90)/36000))+(100*C95*(182)/360)/(1+(C88*(C101+1820-C90)/36000)) -> 46.37296254 | G125: 10 | H125: =(100*H95*(182)/360)/(1+(H88*(H101+182-H90)/36000))+(100*H95*(182)/360)/(1+(H88*(H101+364-H90)/36000))+(100*H95*(182)/360)/(1+(H88*(H101+546-H90)/36000))+(100*H95*(182)/360)/(1+(H88*(H101+728-H90)/36000))+(100*H95*(182)/360)/(1+(H88*(H101+910-H90)/36000))+(100*H95*(182)/360)/(1+(H88*(H101+1092-H90)/36000))+(100*H95*(182)/360)/(1+(H88*(H101+1274-H90)/36000))+(100*H95*(182)/360)/(1+(H88*(H101+1456-H90)/36000))+(100*H95*(182)/360)/(1+(H88*(H101+1638-H90)/36000))+(100*H95*(182)/360)/(1+(H88*(H101+1820-H90)/36000)) -> 46.49693325
A128: DICIEMBRE | B128: 1 | G128: 1
B129: 2024-12-05 | G129: 2024-12-05
B130: Tasa Fondeo | C130: =C4 -> 3.6 | G130: Tasa Fondeo | H130: =C130 -> 3.6
B132: Fecha Consulta | C132: =C90 -> 2014-03-03 | G132: Fecha Consulta | H132: =H133 -> 2014-12-31
B133: Futuro Analizado | C133: 2014-12-31 | G133: Futuro Analizado | H133: =C133 -> 2014-12-31
B134: Dias al Vencimiento del Fut. | C134: =C133-C132 -> 303 | G134: Dias al Vencimiento del Fut. | H134: =H133-H132 -> 0
B135: Fecha Vencimiento Bono | C135: =+B129 -> 2024-12-05 | G135: Fecha Vencimiento Bono | H135: =+G129 -> 2024-12-05
B136: Dias por Vencer | C136: =C135-C132 -> 3930 | G136: Dias por Vencer | H136: =H135-H132 -> 3627
B137: Tasa de Cupón | C137: 0.1 | G137: Tasa de Cupón | H137: =C137 -> 0.1
B138: Rendimiento a Vencimiento | C138: 0.09269984905 | G138: Rendimiento a Vencimiento | H138: 0.1005646691
B139: Dias Trans. Cupón Vigente | C139: =C132-C143 -> 74 | G139: Dias Trans. Cupón Vigente | H139: =H132-H143 -> 13
B140: Precio Limpio | C140: =100*((((C137*182/360*(1+(1/(C138*182/360))))+(((1+(C138*182/360))^(1-(INT(C136/182)+1)))*(1-((C137*182/360)/(C138*182/360)))))/((1+(C138*182/360))^((((C136/182)-INT(C136/182))*182)/182)))-((C137*182/360)*(182-((((C136/182)-INT(C136/182))*182)))/182)) -> 104.9179696 | G140: Precio Limpio | H140: =100*((((H137*182/360*(1+(1/(H138*182/360))))+(((1+(H138*182/360))^(1-(INT(H136/182)+1)))*(1-((H137*182/360)/(H138*182/360)))))/((1+(H138*182/360))^((((H136/182)-INT(H136/182))*182)/182)))-((H137*182/360)*(182-((((H136/182)-INT(H136/182))*182)))/182)) -> 99.63924629
B141: Intereses Corridos | C141: =100*((C137)*(C139/360)) -> 2.055555556 | G141: Intereses Corridos | H141: =100*((H137)*(H139/360)) -> 0.3611111111
B142: Precio Sucio | C142: =C140+C141 -> 106.9735252 | G142: Precio Sucio | H142: =H140+H141 -> 100.0003574
B143: Ultimo Cupón del bono | C143: 2013-12-19 | G143: Ultimo Cupón del bono | H143: 2014-12-18
B144: Ultimo Cupón que paga AL VENCIMIENTO DEL FUTURO | C144: 2014-12-18 | G144: Ultimo Cupón que paga AL VENCIMIENTO DEL FUTURO | H144: =C144 -> 2014-12-18
B145: Siguiente Cupón del bono | C145: 2010-12-23 | G145: Siguiente Cupón del bono | H145: 2010-12-23
B146: ¿Paga Cupon(es)? | C146: =INT((C144-C143)/182) -> 2 | G146: ¿Paga Cupon(es)? | H146: =INT((H144-H143)/182) -> 0
B147: Valor Presente Cupones | C147: =IF(C146>0,IF(C146>1,IF(C146>2,IF(C146>3,IF(C146>4,IF(C146>5,IF(C146>6,IF(C146>7,C165,C164),C163),C162),C161),C160),C159),C158),0) -> 9.914615277 | G147: Valor Presente Cupones | H147: =IF(H146>0,IF(H146>1,IF(H146>2,IF(H146>3,IF(H146>4,IF(H146>5,IF(H146>6,IF(H146>7,H165,H164),H163),H162),H161),H160),H159),H158),0) -> 0
B148: Precio Bruto Con Acarreo | C148: =(C142-C147)*(1+(C130/100*C134/360)) -> 99.9997949 | G148: Precio Bruto Con Acarreo | H148: =(H142-H147)*(1+(H130/100*H134/360)) -> 100.0003574
A152: ='PRECIO-TASA'!B8 -> 100 | B152: Valor Teórico del Futuro | C152: =C148 -> 99.9997949 | F152: =A152 -> 100 | G152: Valor Teórico del Futuro | H152: =H148 -> 100.0003574
B157: Cupones | G157: Cupones
B158: 1 | C158: =(100*C137*(182)/360)/(1+(C130*(C143+182-C132)/36000)) -> 5.001538935 | G158: 1 | H158: =(100*H137*(182)/360)/(1+(H130*(H143+182-H132)/36000)) -> 4.971536587
B159: 2 | C159: =(100*C137*(182)/360)/(1+(C130*(C143+182-C132)/36000))+(100*C137*(182)/360)/(1+(C130*(C143+364-C132)/36000)) -> 9.914615277 | G159: 2 | H159: =(100*H137*(182)/360)/(1+(H130*(H143+182-H132)/36000))+(100*H137*(182)/360)/(1+(H130*(H143+364-H132)/36000)) -> 9.855659431
B160: 3 | C160: =(100*C137*(182)/360)/(1+(C130*(C143+182-C132)/36000))+(100*C137*(182)/360)/(1+(C130*(C143+364-C132)/36000))+(100*C137*(182)/360)/(1+(C130*(C143+546-C132)/36000)) -> 14.74230393 | G160: 3 | H160: =(100*H137*(182)/360)/(1+(H130*(H143+182-H132)/36000))+(100*H137*(182)/360)/(1+(H130*(H143+364-H132)/36000))+(100*H137*(182)/360)/(1+(H130*(H143+546-H132)/36000)) -> 14.65538938
B161: 4 | C161: =(100*C137*(182)/360)/(1+(C130*(C143+182-C132)/36000))+(100*C137*(182)/360)/(1+(C130*(C143+364-C132)/36000))+(100*C137*(182)/360)/(1+(C130*(C143+546-C132)/36000))+(100*C137*(182)/360)/(1+(C130*(C143+728-C132)/36000)) -> 19.48752221 | G161: 4 | H161: =(100*H137*(182)/360)/(1+(H130*(H143+182-H132)/36000))+(100*H137*(182)/360)/(1+(H130*(H143+364-H132)/36000))+(100*H137*(182)/360)/(1+(H130*(H143+546-H132)/36000))+(100*H137*(182)/360)/(1+(H130*(H143+728-H132)/36000)) -> 19.37359335
B162: 5 | C162: =(100*C137*(182)/360)/(1+(C130*(C143+182-C132)/36000))+(100*C137*(182)/360)/(1+(C130*(C143+364-C132)/36000))+(100*C137*(182)/360)/(1+(C130*(C143+546-C132)/36000))+(100*C137*(182)/360)/(1+(C130*(C143+728-C132)/36000))+(100*C137*(182)/360)/(1+(C130*(C143+910-C132)/36000)) -> 24.15304044 | G162: 5 | H162: =(100*H137*(182)/360)/(1+(H130*(H143+182-H132)/36000))+(100*H137*(182)/360)/(1+(H130*(H143+364-H132)/36000))+(100*H137*(182)/360)/(1+(H130*(H143+546-H132)/36000))+(100*H137*(182)/360)/(1+(H130*(H143+728-H132)/36000))+(100*H137*(182)/360)/(1+(H130*(H143+910-H132)/36000)) -> 24.01299461
B163: 6 | C163: =(100*C137*(182)/360)/(1+(C130*(C143+182-C132)/36000))+(100*C137*(182)/360)/(1+(C130*(C143+364-C132)/36000))+(100*C137*(182)/360)/(1+(C130*(C143+546-C132)/36000))+(100*C137*(182)/360)/(1+(C130*(C143+728-C132)/36000))+(100*C137*(182)/360)/(1+(C130*(C143+910-C132)/36000))+(100*C137*(182)/360)/(1+(C130*(C143+1092-C132)/36000)) -> 28.74149166 | G163: 6 | H163: =(100*H137*(182)/360)/(1+(H130*(H143+182-H132)/36000))+(100*H137*(182)/360)/(1+(H130*(H143+364-H132)/36000))+(100*H137*(182)/360)/(1+(H130*(H143+546-H132)/36000))+(100*H137*(182)/360)/(1+(H130*(H143+728-H132)/36000))+(100*H137*(182)/360)/(1+(H130*(H143+910-H132)/36000))+(100*H137*(182)/360)/(1+(H130*(H143+1092-H132)/36000)) -> 28.57618223
B164: 7 | C164: =(100*C137*(182)/360)/(1+(C130*(C143+182-C132)/36000))+(100*C137*(182)/360)/(1+(C130*(C143+364-C132)/36000))+(100*C137*(182)/360)/(1+(C130*(C143+546-C132)/36000))+(100*C137*(182)/360)/(1+(C130*(C143+728-C132)/36000))+(100*C137*(182)/360)/(1+(C130*(C143+910-C132)/36000))+(100*C137*(182)/360)/(1+(C130*(C143+1092-C132)/36000))+(100*C137*(182)/360)/(1+(C130*(C143+1274-C132)/36000)) -> 33.25538055 | G164: 7 | H164: =(100*H137*(182)/360)/(1+(H130*(H143+182-H132)/36000))+(100*H137*(182)/360)/(1+(H130*(H143+364-H132)/36000))+(100*H137*(182)/360)/(1+(H130*(H143+546-H132)/36000))+(100*H137*(182)/360)/(1+(H130*(H143+728-H132)/36000))+(100*H137*(182)/360)/(1+(H130*(H143+910-H132)/36000))+(100*H137*(182)/360)/(1+(H130*(H143+1092-H132)/36000))+(100*H137*(182)/360)/(1+(H130*(H143+1274-H132)/36000)) -> 33.06561971
B165: 8 | C165: =(100*C137*(182)/360)/(1+(C130*(C143+182-C132)/36000))+(100*C137*(182)/360)/(1+(C130*(C143+364-C132)/36000))+(100*C137*(182)/360)/(1+(C130*(C143+546-C132)/36000))+(100*C137*(182)/360)/(1+(C130*(C143+728-C132)/36000))+(100*C137*(182)/360)/(1+(C130*(C143+910-C132)/36000))+(100*C137*(182)/360)/(1+(C130*(C143+1092-C132)/36000))+(100*C137*(182)/360)/(1+(C130*(C143+1274-C132)/36000))+(100*C137*(182)/360)/(1+(C130*(C143+1456-C132)/36000)) -> 37.69709163 | G165: 8 | H165: =(100*H137*(182)/360)/(1+(H130*(H143+182-H132)/36000))+(100*H137*(182)/360)/(1+(H130*(H143+364-H132)/36000))+(100*H137*(182)/360)/(1+(H130*(H143+546-H132)/36000))+(100*H137*(182)/360)/(1+(H130*(H143+728-H132)/36000))+(100*H137*(182)/360)/(1+(H130*(H143+910-H132)/36000))+(100*H137*(182)/360)/(1+(H130*(H143+1092-H132)/36000))+(100*H137*(182)/360)/(1+(H130*(H143+1274-H132)/36000))+(100*H137*(182)/360)/(1+(H130*(H143+1456-H132)/36000)) -> 37.48365306
B166: 9 | C166: =(100*C137*(182)/360)/(1+(C130*(C143+182-C132)/36000))+(100*C137*(182)/360)/(1+(C130*(C143+364-C132)/36000))+(100*C137*(182)/360)/(1+(C130*(C143+546-C132)/36000))+(100*C137*(182)/360)/(1+(C130*(C143+728-C132)/36000))+(100*C137*(182)/360)/(1+(C130*(C143+910-C132)/36000))+(100*C137*(182)/360)/(1+(C130*(C143+1092-C132)/36000))+(100*C137*(182)/360)/(1+(C130*(C143+1274-C132)/36000))+(100*C137*(182)/360)/(1+(C130*(C143+1456-C132)/36000))+(100*C137*(182)/360)/(1+(C130*(C143+1638-C132)/36000)) -> 42.06889685 | G166: 9 | H166: =(100*H137*(182)/360)/(1+(H130*(H143+182-H132)/36000))+(100*H137*(182)/360)/(1+(H130*(H143+364-H132)/36000))+(100*H137*(182)/360)/(1+(H130*(H143+546-H132)/36000))+(100*H137*(182)/360)/(1+(H130*(H143+728-H132)/36000))+(100*H137*(182)/360)/(1+(H130*(H143+910-H132)/36000))+(100*H137*(182)/360)/(1+(H130*(H143+1092-H132)/36000))+(100*H137*(182)/360)/(1+(H130*(H143+1274-H132)/36000))+(100*H137*(182)/360)/(1+(H130*(H143+1456-H132)/36000))+(100*H137*(182)/360)/(1+(H130*(H143+1638-H132)/36000)) -> 41.83251805
B167: 10 | C167: =(100*C137*(182)/360)/(1+(C130*(C143+182-C132)/36000))+(100*C137*(182)/360)/(1+(C130*(C143+364-C132)/36000))+(100*C137*(182)/360)/(1+(C130*(C143+546-C132)/36000))+(100*C137*(182)/360)/(1+(C130*(C143+728-C132)/36000))+(100*C137*(182)/360)/(1+(C130*(C143+910-C132)/36000))+(100*C137*(182)/360)/(1+(C130*(C143+1092-C132)/36000))+(100*C137*(182)/360)/(1+(C130*(C143+1274-C132)/36000))+(100*C137*(182)/360)/(1+(C130*(C143+1456-C132)/36000))+(100*C137*(182)/360)/(1+(C130*(C143+1638-C132)/36000))+(100*C137*(182)/360)/(1+(C130*(C143+1820-C132)/36000)) -> 46.37296254 | G167: 10 | H167: =(100*H137*(182)/360)/(1+(H130*(H143+182-H132)/36000))+(100*H137*(182)/360)/(1+(H130*(H143+364-H132)/36000))+(100*H137*(182)/360)/(1+(H130*(H143+546-H132)/36000))+(100*H137*(182)/360)/(1+(H130*(H143+728-H132)/36000))+(100*H137*(182)/360)/(1+(H130*(H143+910-H132)/36000))+(100*H137*(182)/360)/(1+(H130*(H143+1092-H132)/36000))+(100*H137*(182)/360)/(1+(H130*(H143+1274-H132)/36000))+(100*H137*(182)/360)/(1+(H130*(H143+1456-H132)/36000))+(100*H137*(182)/360)/(1+(H130*(H143+1638-H132)/36000))+(100*H137*(182)/360)/(1+(H130*(H143+1820-H132)/36000)) -> 46.1143471
